Workbook

Sheet 기본사항
P3: 사용가이드
C5: 소득자 인적사항
C7: 성명 | G7: 이영화
C8: 주민등록번호 | G8: 123456-1234567
C9: 주소 | G9: 서울 중구 다산로11길 25
C10: 귀속연도 | G10: 2022
C12: 원천징수의무자 인적사항
C14: 상호 | G14: (주)조세통람
C15: 대표자성명 | G15: 김철수
C16: 사업자등록번호 | G16: 203-81-11111
C17: 주민등록번호 | G17: 123456-1234567
C18: 사업장주소 | G18: 서울 중구 동호로14길 5-6
C19: 신고년월일 | G19: 2023-03-02
C20: 관할세무서 | G20: 중부세무서장
P22: 최신세무·회계·법령서비스
P23: http://www.taxnet.co.kr/

Sheet 신고서
B2: ■ 소득세법 시행규칙[별지 제37호서식(1)] <개정 2022. 03. 18.> | BF2: (8쪽 중 제1쪽)
B3: 소득ㆍ세액 공제신고서/근로소득자 소득ㆍ세액 공제신고서 ( 2022년 소득에 대한 연말정산용)
B4: ※ 근로소득자는 신고서에 소득ㆍ세액 공제 증명서류를 첨부하여 원천징수의무자(소속 회사 등)에게 제출하며, 원천징수의무자는 신고서 및 첨부서류를 확인하여 근로소득 세액계산을 하고 근로소득자에게 즉시 근로소득원천징수영수증을 발급해야 합니다. 연말정산 시 근로소득자에게 환급이 발생하는 경우 원천징수의무자는 근로소득자에게 환급세액을 지급해야 합니다.
B5: 소득자 성명 | K5: =기본사항!G7 -> 이영화 | AB5: 주민등록번호 | AK5: =기본사항!G8 -> 123456-1234567
B6: 근무처 명칭 | K6: =기본사항!G14 -> (주)조세통람 | AB6: 사업자등록번호 | AK6: =기본사항!G16 -> 203-81-11111
B7: 세대주여부 | O7: 세대주 | R7: , | V7: 세대원 | AB7: 국적 | AK7: 한국 | AN7: ( 국적 코드: | AT7: KR | BE7: )
K8: FALSE | AA8: FALSE
B9: 근무기간 | K9: 20220101 | R9: ~ | S9: 20221231 | AB9: 감면기간 | AQ9: ~
B10: 거주구분 | O10: 거주자 | R10: , | V10: 비거주자 | AB10: 거주지국 | AK10: 한국 | AN10: ( 거주지국 코드: | AT10: KR | BE10: )
K11: TRUE | AA11: FALSE | AW11: i | AY11: i | AZ11: i
B12: 인적공제 항목변동 여부 | M12: 전년과동일 | R12: , | V12: 변동 | AB12: 분납신청 여부 | AO12: 신청 | AR12: , | BD12: 미신청
B13: 원천징수세액 선택 | M13: 1.2 | R13: 1 | W13: 0.8 | AB13: ※ 근로소득자 본인이 원하는 경우 매월 원천징수하는 세액을 법령상 세액의 120%, 100%, 80% 중 선택할 수 있습니다.
B14: Ⅰ.인적공제 및 소득공제명세 | C14: 인적공제항목 | AB14: 각종 소득ㆍ세액 공제 항목
C15: 관계코드 | F15: 성명 | N15: 소득금액 기준 | O15: 기본공제 | U15: 경로우대 | X15: 출산입양 | AB15: 자료 구분 | AE15: 보험료 | AM15: 의료비 | BC15: 교육비
C16: 내ㆍ외 국인 | F16: 주민등록번호 | N16: (백만원) 초과여부 | O16: 부녀자 | R16: 한부모 | U16: 장애인 | X16: 자녀 | AE16: 건강 | AG16: 고용 | AI16: 보장성 | AK16: 장애인 전용 보장성 | AM16: 일반 | AO16: 난임 | AQ16: 65세이상 장애인 건강보험 산정특례자 | AZ16: 실손의료 보험금 | BC16: 일반 | BE16: 장애인
C17: 인적공제 항목에 해당하는 | O17: =인적공제!G17 -> 5 | U17: =인적공제!M17 -> 1 | X17: =인적공제!I17 -> 0 | AB17: 국세청계 | AE17: =AE19+AE21+AE23+AE25+AE27+AE29+AE31+AE33+AE35+AE37 -> 0 | AG17: =AG19+AG21+AG23+AG25+AG27+AG29+AG31+AG33+AG35+AG37 -> 0 | AI17: =AI19+AI21+AI23+AI25+AI27+AI29+AI31+AI33+AI35+AI37 -> 0 | AK17: =AK19+AK21+AK23+AK25+AK27+AK29+AK31+AK33+AK35+AK37 -> 0 | AM17: =AM19+AM21+AM23+AM25+AM27+AM29+AM31+AM33+AM35+AM37 -> 0 | AO17: =AO19+AO21+AO23+AO25+AO27+AO29+AO31+AO33+AO35+AO37 -> 0 | AQ17: =AQ19+AQ21+AQ23+AQ25+AQ27+AQ29+AQ31+AQ33+AQ35+AQ37 -> 0 | BC17: =BC19+BC21+BC23+BC25+BC27+BC29+BC31+BC33+BC35+BC37 -> 0 | BE17: =BE19+BE21+BE23+BE25+BE27+BE29+BE31+BE33+BE35+BE37 -> 0
C18: 인원수를 적습니다. (자녀: | L18: 0 | M18: 명) | O18: =IF(R18="",IF(O20="","",1),"") ->  | R18: =IF(R20="","",1) ->  | U18: =인적공제!K17 -> 0 | X18: =인적공제!L17 -> 0 | AB18: 기타계 | AE18: =AE20+AE22+AE24+AE26+AE28+AE30+AE32+AE34+AE36+AE38 -> 883200 | AG18: =AG20+AG22+AG24+AG26+AG28+AG30+AG32+AG34+AG36+AG38 -> 201600 | AI18: =AI20+AI22+AI24+AI26+AI28+AI30+AI32+AI34+AI36+AI38 -> 0 | AK18: =AK20+AK22+AK24+AK26+AK28+AK30+AK32+AK34+AK36+AK38 -> 0 | AM18: =AM20+AM22+AM24+AM26+AM28+AM30+AM32+AM34+AM36+AM38 -> 0 | AO18: =AO20+AO22+AO24+AO26+AO28+AO30+AO32+AO34+AO36+AO38 -> 0 | AQ18: =AQ20+AQ22+AQ24+AQ26+AQ28+AQ30+AQ32+AQ34+AQ36+AQ38 -> 0 | AS18: =AS20+AS22+AS24+AS26+AS28+AS30+AS32+AS34+AS36+AS38 -> 0 | BC18: =BC20+BC22+BC24+BC26+BC28+BC30+BC32+BC34+BC36+BC38 -> 0 | BE18: =BE20+BE22+BE24+BE26+BE28+BE30+BE32+BE34+BE36+BE38 -> 0
C19: 0 | F19: =K5 -> 이영화 | O19: ○ | AB19: 국세청
C20: 1 | F20: (근로자 본인) | AB20: 기타 | AE20: =급여내역!CB20+급여내역!CD20 -> 883200 | AG20: =급여내역!CC20 -> 201600
C21: 3 | F21: 조세희 | O21: ○ | AB21: 국세청
C22: 1 | F22: 710415-2031653 | AB22: 기타
C23: 2 | F23: 편람일 | O23: ○ | U23: ○ | AB23: 국세청
C24: 1 | F24: 481103-2019015 | AB24: 기타
C25: 4 | F25: 이대한 | O25: ○ | AB25: 국세청
C26: 1 | F26: 091206-4059631 | AB26: 기타
C27: 4 | F27: 이민국 | O27: ○ | AB27: 국세청
C28: 1 | F28: 151230-3059632 | AB28: 기타
AB29: 국세청
AB30: 기타
AB31: 국세청
AB32: 기타
AB33: 국세청
AB34: 기타
AB35: 국세청
AB36: 기타
AB37: 국세청
AB38: 기타
C39: 각종 소득ㆍ세액 공제 항목
C40: 자료 구분 | H40: 신용카드등 사용액 | BC40: 기부금
H41: 신용카드 | O41: 직불카드등 | U41: 현금영수증 | AA41: 도서공연등사용분 (총급여 7천만원 이하자만 기재) | AG41: 전통시장사용분 | AN41: 대중교통 이용분 | AU41: 소비증가분
AU42: 2020년 전체사용분 | AY42: 2021년 전체사용분
C43: 국세청계 | H43: =H45+H47 -> 0 | O43: =O45+O47 -> 0 | U43: =U45+U47 -> 0 | AA43: =AA45+AA47 -> 0 | AG43: =AG45+AG47 -> 0 | AN43: =AN45+AN47 -> 0 | AU43: =AU45+AU47 -> 0 | AY43: =AY45+AY47 -> 0 | BC43: =BC45+BC47 -> 0
C44: 기타계 | H44: =H46+H48 -> 0 | O44: =O46+O48 -> 0 | U44: =SUM(U46,U48) -> 0 | AA44: =AA46+AA48 -> 0 | AG44: =AG46+AG48 -> 0 | AN44: =AN46+AN48 -> 0 | AU44: =AU46+AU48 -> 0 | AY44: =AY46+AY48 -> 0 | BC44: =BC46+BC48 -> 0
C45: 국세청
C46: 기타
C47: 국세청
C48: 기타
C49: 국세청 | BM49: =IF(R50="",AC49+AC50,0) -> 0
C50: 기타
C51: 국세청 | BM51: =IF(R52="",AC51+AC52,0) -> 0
C52: 기타
C53: 국세청 | BM53: =IF(R54="",AC53+AC54,0) -> 0
C54: 기타
C55: 국세청 | BM55: =IF(R56="",AC55+AC56,0) -> 0
C56: 기타
B58: 유의사항
C59: 1. “인적공제 항목 변동 여부”란에는 해당 항목에 “√”표시합니다(인적공제 항목이 전년과 동일한 경우에는 주민등록표등본을 제출하지 않습니다).
C60: 2. 관계코드
H61: 구 분 | Q61: 관계코드 | U61: 구 분 | AE61: 관계코드 | AI61: 구 분 | AS61: 관계코드
H62: 소득자 본인 (「소득세법」 §50①1) | Q62: 0 | U62: 소득자의 직계존속 (「소득세법」 §50①3가) | AE62: 1 | AI62: 배우자의 직계존속 (「소득세법」 §50①3가) | AS62: 2
H63: 배우자 (「소득세법」 §50①2) | Q63: 3 | U63: 직계비속(자녀ㆍ입양자) (「소득세법」 §50①3나) | AE63: 4 | AI63: 직계비속(코드 4 제외) (「소득세법」 §50①3나) | AS63: 5*
H64: 형제자매 (「소득세법」 §50①3다) | Q64: 6 | U64: 수급자(코드1~6제외) (「소득세법」 §50①3라) | AE64: 7 | AI64: 위탁아동 (「소득세법」 §50①3마) | AS64: 8
H65: * 관계코드 5: 해당 직계비속과 그 배우자가 장애인인 경우 그 배우자를 말하며, 관계코드 4~6은 소득자와 배우자의 각각의 관계를 포함합니다.
C66: 3. 연령기준 - 경로우대: ( . . .) 이전 출생(만 70세 이상: 연 100만원 공제)
C67: 4. "부녀자 공제"란에는 소득자 본인이 여성인 경우로서 다음의 요건을 모두 충족하는 경우에 표시합니다. 가. 해당 과세기간의 종합소득과세표준을 계산할 때 합산하는 종합소득금액이 3천만원 이하일 것 나. 배우자가 없는 여성으로서 「소득세법」 제50조제1항제3호에 따른 부양가족이 있는 세대주이거나 배우자가 있는 여성일 것
C68: 5. "장애인 공제"란에는 다음의 해당 코드를 적습니다.
H69: 구분 | K69: 「장애인복지법」에 따른 장애인 | V69: 「국가유공자 등 예우 및 지원에 관한 법률」에 따른 상이자 및 이와 유사한 자로서 근로능력이 없는 자 | AJ69: 그 밖에 항시 치료를 요하는 중증환자
H70: 해당코드 | K70: 1 | V70: 2 | AJ70: 3
C72: 6. 내ㆍ외국인: 내국인=1, 외국인=9로 구분하여 적습니다. 종교관련종사자가 외국인에 해당하는 경우 국적을 적으며, 국적코드는 거주지국코드를 참조하여 적습니다.
C73: 7. 내ㆍ외국인: 내국인=1, 외국인=9로 구분하여 적습니다. 근로소득자가 외국인에 해당하는 경우 국적을 적으며, 국적코드는 거주지국코드를 참조하여 적습니다.
BF75: 210㎜×297㎜
BF76: (8쪽 중 제2쪽)
B77: 구분 | I77: 지출명세 | Y77: 지출구분 | AG77: 금액 | AM77: 한도액 | AS77: 공제액
B78: Ⅱ.연금보험료공제 | C78: 연금보험료(국민연금, 공무원연금, 군인연금, 교직원연금 등) | I78: 국민연금보험료 | P78: 종(전)근무지 | Y78: 보험료 | AG78: =급여내역!CA26+급여내역!CA33+급여내역!CA40 -> 0 | AM78: 전액 | AS78: =AG78 -> 0
P79: 주(현)근무지 | Y79: 보험료 | AG79: =급여내역!CA20 -> 1134000 | AM79: 전액 | AS79: =AG79 -> 1134000
I80: 국민연금보험료 외의 공적연금보험료 | P80: 종(전)근무지 | Y80: 보험료 | AG80: 300000 | AM80: 전액 | AS80: =AG80 -> 300000
P81: 주(현)근무지 | Y81: 보험료 | AM81: 전액 | AS81: =AG81 -> 0
I82: 연금보험료 계 | AG82: =SUM(AG78:AL81) -> 1434000 | AS82: =SUM(AS78:BF81) -> 1434000
B83: Ⅲ.특별소득공제 | C83: 보험료 | I83: 국민건강보험 (노인장기요양보험포함) | P83: 종(전)근무지 | Y83: 보험료 | AG83: =급여내역!CB26+급여내역!CD26+급여내역!CB33+급여내역!CD33+급여내역!CB40+급여내역!CD40 -> 0 | AM83: 전액 | AS83: =AG83 -> 0
P84: 주(현)근무지 | Y84: 보험료 | AG84: =급여내역!CB20+급여내역!CD20 -> 883200 | AM84: 전액 | AS84: =AG84 -> 883200
I85: 고용보험 | P85: 종(전)근무지 | Y85: 보험료 | AG85: =급여내역!CC26+급여내역!CC33+급여내역!CC40 -> 0 | AM85: 전액 | AS85: =AG85 -> 0
P86: 주(현)근무지 | Y86: 보험료 | AG86: =급여내역!CC20 -> 201600 | AM86: 전액 | AS86: =AG86 -> 201600
I87: 보험료 계 | AG87: =SUM(AG83:AL86) -> 1084800 | AS87: =SUM(AS83:BF86) -> 1084800
C88: 주택자금 | I88: 주택임차차입금 | P88: 대출기관차입 | Y88: 원리금 상환액 | AG88: 3800000 | AM88: 작성방법참조 | AS88: =ROUNDDOWN(MIN(3000000,AG88*0.4),0) -> 1520000
P89: 거주자 차입 | AS89: =ROUNDDOWN(MIN((3000000-AS88),AG89*0.4),0) -> 0
I90: 장기 주택 저당 차입금 | L90: 2011년 이전 차입분 | P90: 15년 미만 | Y90: 이자 상환액 | AM90: 작성방법참조 | AS90: =IF(AG90="",0,MIN(AG90,(6000000-AS88-AS89))) -> 0
P91: 15년~29년 | AS91: =IF(AG91="",0,MIN(AG91,(10000000-AS88-AS89))) -> 0
P92: 30년 이상 | AS92: =IF(AG92="",0,MIN(AG92,(15000000-AS88-AS89))) -> 0
L93: 2012년 이후 차입분 (15년 이상) | P93: 고정금리이거나, 비거치상환 대출 | AS93: =IF(AG93="",0,MIN(AG93,(15000000-AS88-AS89))) -> 0
P94: 기타 대출 | AS94: =IF(AG94="",0,MIN(AG94,(5000000-AS88-AS89))) -> 0
L95: 2015년 이후 차입분 | P95: 15년 이상 | R95: 고정금리이면서, 비거치상환 대출 | AS95: =IF(AG95="",0,MIN(AG95,(18000000-AS88-AS89))) -> 0
R96: 고정금리이거나, 비거치상환 대출 | AS96: =IF(AG96="",0,MIN(AG96,(15000000-AS88-AS89))) -> 0
R97: 기타 대출 | AS97: =IF(AG97="",0,MIN(AG97,(5000000-AS88-AS89))) -> 0
P98: 10년~ 15년 | R98: 고정금리이거나, 비거치상환 대출 | AS98: =IF(AG98="",0,MIN(AG98,(3000000-AS88-AS89))) -> 0
I99: 주택자금 공제액 계 | AS99: =SUM(AS88:BF98) -> 1520000
C100: 기부금 (이월분) | I100: 「소득세법」 제34조 제2항 제1호에 따른 기부금 | Y100: 기부금이월액 | AM100: 작성방법참조 | AS100: =IF(AG100="",0,MIN(BI102,AG100)) -> 0
I101: 「소득세법」 제34조 제3항 제1호(종교단체 기부금 제외)에 따른 기부금 | Y101: 기부금이월액 | AS101: =IF(AG101="",0,IF(AG102>0,MIN(AG101,(BI102*0.1)+MIN((BI102*0.2),AG101)),MIN(AG101,BI102*0.3))) -> 0 | BI101: 근로소득금액
I102: 「소득세법」 제34조 제3항 제1호에 따른 기부금 중 종교단체기부금 | Y102: 기부금이월액 | AS102: =IF(AG102="",0,MIN(AG102,(BI102*0.1))) -> 0 | BI102: =영수증!T65 -> 16170000
I103: 기부금이월분(합계) | AG103: =SUM(AG101:AL102) -> 0 | AS103: =SUM(AS101:BF102) -> 0
B104: Ⅳ.그밖의소득공제 | C104: 개인연금저축(2000년 이전가입) | Y104: 납입금액 | AM104: 납입액 40%와 72만원 | AS104: =ROUNDDOWN(IF(AG104="",0,MIN(AG104*0.4,720000)),0) -> 0 | BI104: 총급여액
C105: 소기업ㆍ소상공인 공제부금 | Y105: 납입금액 | AM105: 작성방법참조 | AS105: =IF(AG105="",0,IF(BI105>100000000,MIN(AG105,2000000),IF(BI105>40000000,MIN(AG105,3000000),MIN(AG105,5000000)))) -> 0 | BI105: =영수증!T63 -> 25200000
C106: 주택마련저축 | I106: 청약저축 | Y106: 납입금액 | AM106: 작성방법참조 | AS106: =ROUNDDOWN(IF(AG106="",0,MIN(MIN(AG106,2400000)*0.4,MAX((BI106-AS88-AS89-SUM(AS90:BF98)),0))),0) -> 0 | BI106: =IF(AS90>0,6000000,IF(AS91>0,10000000,IF(AS92>0,15000000,IF(AS93>0,15000000,IF(AS94>0,5000000,3000000))))) -> 3000000
I107: 근로자주택마련저축 | Y107: 납입금액 | AM107: 작성방법참조 | AS107: =ROUNDDOWN(IF(AG107="",0,MIN(MIN(AG107,1800000)*0.4,MAX((BI106-AS88-AS89-AS106-SUM(AS90:BF98)),0))),0) -> 0
I108: 주택청약종합저축 | Y108: 납입금액 | AM108: 작성방법참조 | AS108: =ROUNDDOWN(IF(AG108="",0,MIN(MIN(AG108,2400000)*0.4,MAX((BI106-AS88-AS89-AS106-AS107-SUM(AS90:BF98)),0))),0) -> 0
I109: 주택마련저축 소득공제 계 | AG109: =SUM(AG106:AL108) -> 0 | AS109: =SUM(AS106:BF108) -> 0
C110: 투자조합 출자 등 | I110: 2019년 출자ㆍ투자분 | V110: 벤처 등 | Y110: 출자ㆍ투자금액 | AM110: 0.1 | AS110: =MIN(ROUNDDOWN(IF(AG110="",0,AG110*$AM$110),0),영수증!$T$65*0.5) -> 0
V111: 조합1 | AS111: =MIN(ROUNDDOWN(IF(AG111="",0,AG111*$AM$110),0),영수증!$T$65*0.5) -> 0
V112: 조합2 | AS112: =MIN(ROUNDDOWN(IF(AG112="",0,AG112*AM110),0),영수증!T65*0.5) -> 0
I113: 2020년 출자ㆍ투자분 | V113: 벤처 등 | Y113: 출자ㆍ투자금액 | AM113: 0.1 | AS113: =MIN(ROUNDDOWN(IF(AG113="",0,AG113*$AM$113),0),영수증!$T$65*0.5) -> 0
V114: 조합1 | AS114: =MIN(ROUNDDOWN(IF(AG114="",0,AG114*$AM$113),0),영수증!$T$65*0.5) -> 0
V115: 조합2 | AS115: =MIN(ROUNDDOWN(IF(AG115="",0,AG115*$AM$113),0),영수증!$T$65*0.5) -> 0
I116: 2021년 출자ㆍ투자분 | V116: 벤처 등 | Y116: 출자ㆍ투자금액 | AM116: 0.1 | AS116: =MIN(ROUNDDOWN(IF(AG116="",0,AG116*$AM$116),0),영수증!$T$65*0.5) -> 0
V117: 조합1 | AS117: =MIN(ROUNDDOWN(IF(AG117="",0,AG117*$AM$116),0),영수증!$T$65*0.5) -> 0
V118: 조합2 | AS118: =MIN(ROUNDDOWN(IF(AG118="",0,AG118*$AM$116),0),영수증!$T$65*0.5) -> 0
I119: 투자조합 출자 등 소득공제 계 | AG119: =SUM(AG110:AL118) -> 0 | AS119: =SUM(AS110:AS118) -> 0
C120: 신용카드등사용액 | I120: ①신용카드 | Y120: 사용금액 | AG120: =SUM(H43:H44) -> 0
I121: ②직불·선불카드 | Y121: 사용금액 | AG121: =SUM(O43:O44) -> 0
I122: ③현금영수증 | Y122: 사용금액 | AG122: =SUM(U43:U43) -> 0
I123: ④도서·공연사용분(총급여 7천만원 이하자) | Y123: 사용금액 | AG123: =SUM(AA43:AA44) -> 0
I124: ⑤전통시장사용분 | Y124: 사용금액 | AG124: =SUM(AG43:AG44) -> 0
I125: ⑥대중교통이용분 | Y125: 사용금액 | AG125: =SUM(AN43:AN44) -> 0
A126: ` | I126: ⑦소비증가분 (2021년 신용카드등사용금액 중 2020년 대비 5%를 초과하여 증가한 금액) | Y126: 증가금액
I127: 계(①+②+③+④+⑤+⑥) | AG127: =SUM(AG120:AL125) -> 0 | AS127: =신용카드!AP25 -> 0
C128: 우리사주조합 출연금 | Y128: 출연금액 | AM128: 작성방법참조 | AS128: =IF(AG128="",0,MIN(AG128,4000000)) -> 0
C129: 고용유지중소기업 근로자 | Y129: 임금삭감액 | AM129: 작성방법참조 | AS129: =ROUNDDOWN(IF(AG129="",0,MIN(AG129*0.5,10000000)),0) -> 0
C130: 장기집합투자증권저축 | Y130: 납입금액 | AM130: 작성방법참조 | AS130: =ROUNDDOWN(IF(AG130="",0,MIN(AG130*0.4,2400000)),0) -> 0
B131: 210㎜×297㎜ (8쪽 중 제3쪽)
B133: 구분 | E133: 세액감면․공제명세 | X133: 세액감면․공제 명세
B134: Ⅴ.세액감면및공제 | C134: 세액감면 | E134: 외국인 근로자 | K134: 입국목적 | S134: 정부간 협약 「조세특례제한법」상 감면 조세조약 상 감면
K135: 기술도입계약 또는 근로제공일 | AG135: 감면기간만료일
K136: 외국인 근로소득에 대한 감면 | X136: 접수일 | AM136: 제출일
K137: 근로소득에 대한 조세조약 상 면제 | X137: 접수일 | AM137: 제출일
E138: 성과공유 중소기업 경영성과급 감면 | X138: 시작일 | AM138: 종료일
E139: 중소기업 청년근로자 및 핵심인력 성과보상기금 수령액 감면 | X139: 시작일 | AM139: 종료일
E140: 내국인 우수 인력 국내 복귀 감면 | X140: 시작일 | AM140: 종료일
E141: 중소기업 취업자 감면 | X141: 취업일 | AM141: 감면기간종료일
C142: 세액공제 | E142: 공제종류 | X142: 명세 | AH142: 한도액 | AM142: 공제대상금액 | AR142: 공제율 | BC142: 공제세액
E143: 연금계좌 | K143: 「과학기술인공제회법」에 따른 퇴직연금 | X143: 납입금액 | AB143: 100 | AH143: 작성방법참조 | AM143: =IF(AB143="",0,MIN(AB143,7000000)) -> 100 | AR143: 12% 또는 15% | BC143: =영수증!AN79 -> 15
K144: 「근로자퇴직급여 보장법」에 따른 퇴직연금 | X144: 납입금액 | AM144: =IF(AB144="",0,MIN(AB144,7000000-AM143)) -> 0 | BC144: =영수증!AN83 -> 0
K145: 연금저축 | X145: 납입금액 | AM145: =IF(AB145="",0,MIN(MIN(IF((7000000-AM143-AM144)<0,0,(7000000-AM143-AM144)),AB145),IF(BI145>120000000,3000000,4000000))) -> 0 | BC145: =영수증!AN87 -> 0 | BI145: =영수증!T63 -> 25200000
K146: 개인종합자산관리계좌 만기 시연금계좌 납입액 | X146: 납입금액 | AM146: =MIN(AB146*10%,3000000) -> 0 | BC146: =영수증!AN88 -> 0
K147: 연금계좌 계 | AB147: =SUM(AB143:AG145) -> 100 | AM147: =SUM(AM143:AQ145) -> 100 | BC147: =SUM(BC143:BF145) -> 15
E148: 특별세액공제 | I148: 보 험 료 | K148: 보장성 | X148: 보험료 | AH148: 100만원 | AM148: =IF(AB148="",0,MIN(AB148,1000000)) -> 0 | AR148: 0.12 | BC148: =ROUNDDOWN(AM148*0.12,0) -> 0 | BI148: 총급여3% | BJ148: =ROUNDDOWN(영수증!T63*0.03,0) -> 756000
K149: 장애인전용보장성 | X149: 보험료 | AH149: 100만원 | AM149: =IF(AB149="",0,MIN(AB149,1000000)) -> 0 | AR149: 0.15 | BC149: =ROUNDDOWN(AM149*0.15,0) -> 0 | BI149: 3%초과의료비 | BJ149: =(AM155-BJ148) -> -756000
K150: 보험료 계 | AB150: =SUM(AB148:AG149) -> 0 | AM150: =SUM(AM148:AQ149) -> 0 | BC150: =SUM(BC148:BF149) -> 0 | BI150: 한도액 | BJ150: 7000000
I151: 의 료 비 | K151: 본인ㆍ65세이상자ㆍ장애인 ㆍ건강보험산정특례자 | X151: 지출액 | AB151: 0 | AH151: 작성방법참조 | AM151: =MAX(IF(BI153<0,AB151+BI153,AB151),0) -> 0 | AR151: 0.15 | BC151: =AM151*AR151 -> 0
K152: 난임시술비 | X152: 지출액 | AB152: 0 | AM152: =MAX(IF(BI155<0,AB152+BI155,AB152),0) -> 0 | AR152: 0.2 | BC152: =AM152*AR152 -> 0
K153: 그 밖의 공제대상자 | X153: 지출액 | AB153: 0 | AM153: =IF(AB153="",0,MIN(MAX(AB153-BJ148,0),7000000)) -> 0 | AR153: 0.15 | BC153: =AM153*AR153 -> 0 | BI153: =IF(AB153="",0,MIN((AB153-ROUNDDOWN(영수증!T63*0.03,0)),7000000)) -> -756000
K154: 실손의료보험금 계 | X154: 수령액
K155: 의료비계 | AB155: =SUM(AB151:AG154) -> 0 | AM155: =MAX(SUM(AM151:AQ153),0) -> 0 | BC155: =SUM(BC151:BF153) -> 0 | BI155: =IF(BI153<0,AB151+BI153,AB152) -> -756000
I156: 교 육 비 | K156: 소득자 본인 | X156: 공납금 (대학원 포함) | AH156: 전액 | AM156: =AB156 -> 0 | AR156: 0.15 | BC156: =ROUNDDOWN(AM156*0.15,0) -> 0
K157: 취학전 아동 | S157: ( | W157: 명) | X157: 유치원, 학원비 등 | AH157: 1명당 300만원 | AM157: =IF(AB157="",0,MIN(AB157,3000000*T157)) -> 0 | BC157: =ROUNDDOWN(IF(AB157="",0,AM157*0.15),0) -> 0
K158: 초ㆍ중ㆍ고등학교 | S158: ( | W158: 명) | X158: 공납금 | AH158: 1명당 300만원 | AM158: =IF(AB158="",0,MIN(AB158,3000000*T158)) -> 0 | BC158: =ROUNDDOWN(IF(AB158="",0,AM158*0.15),0) -> 0
K160: 대학생(대학원 불포함) | S160: ( | W160: 명) | X160: 공납금 | AH160: 1명당 900만원 | AM160: =IF(AB160="",0,MIN(AB160,9000000*T160)) -> 0 | BC160: =ROUNDDOWN(IF(AB160="",0,AM160*0.15),0) -> 0
K161: 장애인 | S161: ( | W161: 명) | X161: 특수교육비 | AH161: 전액 | AM161: =AB161 -> 0 | BC161: =ROUNDDOWN(IF(AB161="",0,AM161*0.15),0) -> 0
K162: 교육비 계 | AB162: =SUM(AB156:AG161) -> 0 | AM162: =SUM(AM156:AQ161) -> 0 | BC162: =SUM(BC156:BF161) -> 0
I163: 기 부 금 | K163: 정치자금 기부금 | P163: 10만원 이하 | X163: 기부금액 | AH163: 작성방법참조 | AM163: =AB163 -> 0 | AR163: 100/110 | BC163: =ROUNDDOWN(IF(AM163="",0,(AM163*100/110)),0) -> 0
P164: 10만원 초과 | X164: 기부금액 | AM164: =IF(AB164="",0,MIN(AB164,영수증!T65-AS103)) -> 0 | AR164: 15% 또는 30%(2021년의 경우 20% 또는 35%) | BC164: =ROUNDDOWN(IF(AM164<=29900000,(AM164*0.15),(AM164-29900000)*0.25+4485000),0) -> 0
K165: 법정기부금 | X165: 기부금액 | AM165: =IF(AB165="",0,MIN(AB165,(영수증!T65-AM163-AM164-AS100))) -> 0 | BC165: =ROUNDDOWN(IF(AM165<=20000000,(AM165*0.15),(AM165-20000000)*0.3+3000000),0) -> 0
K166: 우리사주조합기부금 | X166: 기부금액 | AB166: 0 | AM166: =IF(AB166="",0,MIN(AB166,(영수증!T65-AM163-AM164-AM165)*0.3)) -> 0 | BC166: =ROUNDDOWN(IF(AM166<=20000000,(AM166*0.15),(AM166-20000000)*0.3+3000000),0) -> 0
K167: 「소득세법」 제34조 제3항 제1호(종교단체 기부금 제외)에 따른 기부금 | X167: 기부금액 | AB167: 0 | AM167: =IF(AB167="",0,IF(AB168>0,MIN(AB167,(AL167*0.1)+MIN((AL167*0.2),AB167)),MIN(AB167,AL167*0.3))) -> 0 | BC167: =ROUNDDOWN(IF(AM167<=20000000,(AM167*0.15),(AM167-20000000)*0.3+3000000),0) -> 0
K168: 「소득세법」 제34조 제3항 제1호에 따른 기부금 중 종교단체기부금 | X168: 기부금액 | AM168: =IF(AB168="",0,MIN(AB168,(AM166*0.1))) -> 0 | BC168: =ROUNDDOWN(IF(AM168<=20000000,(AM168*0.15),(AM168-20000000)*0.3+3000000),0) -> 0
K169: 기부금 계 | AB169: =SUM(AB163:AG168) -> 0 | AM169: =SUM(AM163:AQ168) -> 0 | BC169: =SUM(BC163:BF168) -> 0
E170: 외국납부세액 | X170: 국외원천소득 | AM170: 국외근로소득금액 | AS170: =IF(AG170=0,0,ROUNDDOWN(AG170-(영수증!T64*(AG170/영수증!T63)),0)) -> 0
X171: 납세액(외화)
X172: 납세액(원화) | AM172: -
X173: 납세국명 | AM173: 납부일
X174: 신청서제출일 | AM174: 국외근무처
X175: 근무기간 | AM175: 직책
E176: 주택자금차입금이자세액공제 | X176: 이자상환액 | AM176: 0.3 | AS176: =ROUNDDOWN(AG176*0.3,0) -> 0
E177: 월세액 세액공제 | X177: 지출액 | AG177: 0 | AM177: 10% 또는 12% | AS177: =ROUNDDOWN(MIN(AG177,7500000)*IF(영수증!T63<=55000000,0.12,IF(영수증!T63<=70000000,0.1,0)),0) -> 0
C178: 신고인은「소득세법」제140조에 따라 위의 내용을 신고하며, 위 내용을 충분히 검토하였고 신고인이 알고 있는 사실 그대로를 정확하게 적었음을 확인합니다.
B179: 2022년 월 일
AG180: 신고인 | AK180: =K5 -> 이영화 | AR180: (서명 또는 인)
B181: Ⅵ. 추가 제출 서류
B182: 1. 외국인근로자 단일세율적용신청서 제출여부(○ 또는 ×로 적습니다) | AO182: 제출( | AS182: )
B183: 2.종(전) 근무지명세 | H183: 종(전)근무지명 | X183: 종(전)급여총액 | AM183: 종(전)근무지 근로소득원천징수영수증
H184: 사업자등록번호 | X184: 종(전)결정세액 | AQ184: 원천징수영수증 제출( | BA184: )
B185: 3. 연금.저축 등 소득․세액공제 명세서 제출여부 (○ 또는 ×로 적습니다) | Y185: 제출( | AC185: ) | AD185: ※ 연금계좌, 주택마련저축 등 소득·세액공제를 신청한 경우 해당 명세서를 제출하여야 합니다.
B187: 4. 월세액․거주자 간 주택임차차입금 원리금상환액 소득공제 명세서 제출여부 (○ 또는 ×로 적습니다) | Y187: 제출( | AC187: ) | AD187: ※ 월세액, 거주자 간 주택임차차입금 원리금상환액 소득·세액공제를 신청한 경우 해당 명세서를 제출해야 합니다.
B189: 5. 그 밖의 추가 제출 서류 | R189: ① 의료비지급명세서 | X189: ( | AA189: ) | AB189: , | AC189: ② 기부금명세서 | AI189: ( | AL189: ) | AM189: , | AN189: ③ 소득.세액공제 증명서류
B190: 유 의 사 항
C191: 1. 근로소득자가 종(전)근무지 근로소득을 원천징수의무자에게 신고하지 않은 경우에는 근로소득자 본인이 종합소득세 신고를 해야 하며, 신고하지 않은 경우 가산세 부과 등 불이익이 따릅니다. 2. 현 근무지의 연금보험료ㆍ국민건강보험료 및 고용보험료 등은 신고인이 기재하지 않아도 됩니다. 3. "공제금액"란은 근로소득자가 원천징수의무자에게 제출하는 경우 적지 않을 수 있습니다.
BF192: 210㎜×297㎜
BF193: (8쪽 중 제7쪽)
B194: 연금․저축 등 소득․세액 공제명세서
B195: 1.인적사항
B196: ①상 호 | K196: =기본사항!G14 -> (주)조세통람 | AB196: ②사 업 자 등 록 번 호 | AK196: =기본사항!G16 -> 203-81-11111
B197: ③성 명 | K197: =기본사항!G7 -> 이영화 | AB197: ④주 민 등 록 번 호 | AK197: =기본사항!G8 -> 123456-1234567
B198: ⑤주 소 | K198: =기본사항!G9 -> 서울 중구 다산로11길 25 | AK198: (전화번호: | AQ198: )
B199: ⑥사업장소재지 | K199: =기본사항!G18 -> 서울 중구 동호로14길 5-6 | AK199: (전화번호: | AQ199: )
B200: 2. 연금계좌 세액공제
B201: 1) 퇴직연금계좌
B202: * 퇴직연금계좌에 대한 명세를 작성합니다.
B203: 퇴직연금 구분 | L203: 금융회사 등 | U203: 계좌번호(또는 증권번호) | AF203: 납입금액 | AN203: 세액공제금액 | BH203: =SUM(AF204:AM205)=AB143+AB144 -> TRUE | BI203: =SUM(AN204:BF205)=SUM(BC143:BF144) -> TRUE
AF204: 100 | AN204: 15
B206: 2) 연금저축계좌
B207: * 연금저축계좌에 대한 명세를 작성합니다.
B208: 연금저축 구분 | L208: 금융회사 등 | U208: 계좌번호(또는 증권번호) | AF208: 납입금액 | AN208: 소득·세액공제금액 | BH208: =SUM(AF209:AM210)=AG104+AB145 -> TRUE | BI208: =SUM(AN209:BF210)=AS104+BC145 -> TRUE
B211: 3) 개인종합자산관리계좌 만기 시 연금계좌 납입액
... 35 more rows

Sheet 급여내역
Y2: 2022년 급여지급내역
E4: [근무처명] : | M4: =기본사항!G14 -> (주)조세통람 | Y4: [사업자등록번호] : | AI4: =기본사항!G16 -> 203-81-11111 | AZ4: [근무기간] | BG4: 2021-01-01 | BM4: ~ | BO4: 2021-12-31 | BT4: [현근무지]
B5: 월별 | E5: 지급일자 | H5: 과 세 대 상 급 여 | AC5: 간이세액표에의한소득세 | AI5: 감면세액 | AL5: 차감원천징수액 | AX5: 비 과 세 소 득 | CA5: 국민연금 | CB5: 건강보험 | CC5: 고용보험 | CD5: 노인장기 요양보험
H6: 급여액 | M6: 상여액 | Q6: 인정상여 | U6: 주식매수 선택권 | V6: 우리사주 조합인출금 | W6: 임원퇴직 소득금액 한도초과액 | X6: 직무발명 보상금 | Y6: 계 | AL6: 소득세 | AP6: 지방 소득세 | AT6: 농특세 | AX6: 국 외 근 로 소 득 | BF6: 연구 활동비 | BK6: 야간 근로수당 | BO6: 출산 보육수당 | BP6: 외국인근로자 | BQ6: 그밖의비과세
AX7: 지급일자 | BB7: 원화 | BQ7: 내용 | BU7: 금액
B8: 1 | H8: 2100000 | Y8: =SUM(H8:X8) -> 2100000 | AC8: 22740 | AL8: 22740 | AP8: 2270 | CA8: 94500 | CB8: 67830 | CC8: 16800 | CD8: 5770
B9: 2 | H9: 2100000 | Y9: =SUM(H9:X9) -> 2100000 | AC9: 22740 | AL9: 22740 | AP9: 2270 | CA9: 94500 | CB9: 67830 | CC9: 16800 | CD9: 5770
B10: 3 | H10: 2100000 | Y10: 2100000 | AC10: 22740 | AL10: 22740 | AP10: 2270 | CA10: 94500 | CB10: 67830 | CC10: 16800 | CD10: 5770
B11: 4 | H11: 2100000 | Y11: 2100000 | AC11: 22740 | AL11: 22740 | AP11: 2270 | CA11: 94500 | CB11: 67830 | CC11: 16800 | CD11: 5770
B12: 5 | H12: 2100000 | Y12: 2100000 | AC12: 22740 | AL12: 22740 | AP12: 2270 | CA12: 94500 | CB12: 67830 | CC12: 16800 | CD12: 5770
B13: 6 | H13: 2100000 | Y13: 2100000 | AC13: 22740 | AL13: 22740 | AP13: 2270 | CA13: 94500 | CB13: 67830 | CC13: 16800 | CD13: 5770
B14: 7 | H14: 2100000 | Y14: 2100000 | AC14: 22740 | AL14: 22740 | AP14: 2270 | CA14: 94500 | CB14: 67830 | CC14: 16800 | CD14: 5770
B15: 8 | H15: 2100000 | Y15: 2100000 | AC15: 22740 | AL15: 22740 | AP15: 2270 | CA15: 94500 | CB15: 67830 | CC15: 16800 | CD15: 5770
B16: 9 | H16: 2100000 | Y16: 2100000 | AC16: 22740 | AL16: 22740 | AP16: =-+DI16 -> 0 | CA16: 94500 | CB16: 67830 | CC16: 16800 | CD16: 5770
B17: 10 | H17: 2100000 | Y17: 2100000 | AC17: 22740 | AL17: 22740 | AP17: 2270 | CA17: 94500 | CB17: 67830 | CC17: 16800 | CD17: 5770
B18: 11 | H18: 2100000 | Y18: 2100000 | AC18: 22740 | AL18: 22740 | AP18: 2270 | CA18: 94500 | CB18: 67830 | CC18: 16800 | CD18: 5770
B19: 12 | H19: 2100000 | Y19: 2100000 | AC19: 22740 | AL19: 22740 | AP19: 2270 | CA19: 94500 | CB19: 67830 | CC19: 16800 | CD19: 5770
B20: 계 | H20: =SUM(H8:L19) -> 25200000 | M20: =SUM(M8:P19) -> 0 | Q20: =SUM(Q8:T19) -> 0 | U20: =SUM(U8:U19) -> 0 | V20: =SUM(V8:V19) -> 0 | W20: =SUM(W8:W19) -> 0 | X20: =SUM(X8:X19) -> 0 | Y20: =SUM(Y8:AB19) -> 25200000 | AC20: =SUM(AC8:AH19) -> 272880 | AI20: =SUM(AI8:AK19) -> 0 | AL20: =SUM(AL8:AO19) -> 272880 | AP20: =SUM(AP8:AS19) -> 24970 | AT20: =SUM(AT8:AW19) -> 0 | BB20: =SUM(BB8:BE19) -> 0 | BF20: =SUM(BF8:BJ19) -> 0 | BK20: =MIN(SUM(BK8:BN19),2400000) -> 0 | BO20: =SUM(BO8:BO19) -> 0 | BP20: =SUM(BP8:BP19) -> 0 | BU20: =SUM(BU8:BZ19) -> 0 | CA20: =SUM(CA8:CA19) -> 1134000 | CB20: =SUM(CB8:CB19) -> 813960 | CC20: =SUM(CC8:CC19) -> 201600 | CD20: =SUM(CD8:CD19) -> 69240
E22: [근무처명] : | M22: ㈜우인 | Y22: [사업자등록번호] : | AI22: 101-81-22222 | AZ22: [근무기간] | BM22: ~ | BR22: [종(전)근무지]
B23: 월별 | E23: 지급일자 | H23: 과 세 대 상 급 여 | AC23: 간이세액표에의한소득세 | AI23: 감면세액 | AL23: 차감원천징수액 | AX23: 비 과 세 소 득 | CA23: 국민연금 | CB23: 건강보험 | CC23: 고용보험 | CD23: 노인장기 요양보험
H24: 급여액 | M24: 상여액 | Q24: 인정상여 | U24: =U6 -> 주식매수 선택권 | V24: =V6 -> 우리사주 조합인출금 | W24: =W6 -> 임원퇴직 소득금액 한도초과액 | X24: =X6 -> 직무발명 보상금 | Y24: 계 | AL24: 소득세 | AP24: =AP6 -> 지방 소득세 | AT24: 농특세 | AX24: 국 외 근 로 소 득 | BF24: =BF6 -> 연구 활동비 | BK24: =BK6 -> 야간 근로수당 | BO24: =BO6 -> 출산 보육수당 | BP24: =BP6 -> 외국인근로자 | BQ24: 그밖의비과세
AX25: 지급일자 | BB25: 원화 | BQ25: 내용 | BU25: 금액
B26: 계 | Y26: =SUM(H26:X26) -> 0
E29: [근무처명] : | Y29: [사업자등록번호] : | AZ29: [근무기간] | BM29: ~ | BR29: [종(전)근무지]
B30: 월별 | E30: 지급일자 | H30: 과 세 대 상 급 여 | AC30: 간이세액표에의한소득세 | AI30: 감면세액 | AL30: 차감원천징수액 | AX30: 비 과 세 소 득 | CA30: 국민연금 | CB30: 건강보험 | CC30: 고용보험 | CD30: 노인장기 요양보험
H31: 급여액 | M31: 상여액 | Q31: 인정상여 | U31: =U24 -> 주식매수 선택권 | V31: =V24 -> 우리사주 조합인출금 | W31: =W24 -> 임원퇴직 소득금액 한도초과액 | X31: =X24 -> 직무발명 보상금 | Y31: 계 | AL31: 소득세 | AP31: =AP24 -> 지방 소득세 | AT31: 농특세 | AX31: 국 외 근 로 소 득 | BF31: =BF24 -> 연구 활동비 | BK31: =BK24 -> 야간 근로수당 | BO31: =BO24 -> 출산 보육수당 | BP31: =BP24 -> 외국인근로자 | BQ31: 그밖의비과세
AX32: 지급일자 | BB32: 원화 | BQ32: 내용 | BU32: 금액
B33: 계 | Y33: =SUM(H33:X33) -> 0
E36: [근무처명] : | Y36: [사업자등록번호] : | AZ36: [근무기간] | BM36: ~ | BT36: [납세조합]
B37: 월별 | E37: 지급일자 | H37: 과 세 대 상 급 여 | AC37: 간이세액표에의한소득세 | AI37: 감면세액 | AL37: 차감원천징수액 | AX37: 비 과 세 소 득 | CA37: 국민연금 | CB37: 건강보험 | CC37: 고용보험 | CD37: 노인장기 요양보험
H38: 급여액 | M38: 상여액 | Q38: 인정상여 | U38: =U31 -> 주식매수 선택권 | V38: =V31 -> 우리사주 조합인출금 | W38: =W31 -> 임원퇴직 소득금액 한도초과액 | X38: =X31 -> 직무발명 보상금 | Y38: 계 | AL38: 소득세 | AP38: =AP31 -> 지방 소득세 | AT38: 농특세 | AX38: 국 외 근 로 소 득 | BF38: =BF31 -> 연구 활동비 | BK38: =BK31 -> 야간 근로수당 | BO38: =BO31 -> 출산 보육수당 | BP38: =BP31 -> 외국인근로자 | BQ38: 그밖의비과세
AX39: 지급일자 | BB39: 원화 | BQ39: 내용 | BU39: 금액
B40: 계 | Y40: =SUM(H40:X40) -> 0
G42: ㅁ 납세조합공제액: | U42: 원

Sheet 인적공제
C4: 인적공제액계산
C6: 인 적 공 제 | D6: 구분 | E6: 성명 | F6: 주민등록번호 | G6: 기본공제 | H6: 관계 | I6: 출산입양1 | J6: 출산입양2 | K6: 장애인 | L6: 자녀 | M6: 경로우대 | N6: 세대주 | O6: 자녀수
D7: 본인 | E7: =신고서!F19 -> 이영화 | F7: =기본사항!$G$8 -> 123456-1234567 | G7: =IF(신고서!O19="○",1,0) -> 1 | H7: =신고서!C19 -> 0 | I7: =IF(신고서!X19="",0,1) -> 0 | J7: =IF(신고서!X19="○1",3,(IF(신고서!X19="○2",5,(IF(신고서!X19="○3",7,0))))) -> 0 | K7: =IF(신고서!U20="",0,1) -> 0 | L7: =IF(신고서!X20="○",1,0) -> 0 | M7: =IF(신고서!U19="○",1,0) -> 0 | N7: =IF(신고서!K8=TRUE,"예","아니오") -> 아니오 | O7: =L17 -> 0
D8: 부양가족1 | E8: =신고서!F21 -> 조세희 | F8: =신고서!F22 -> 710415-2031653 | G8: =IF(신고서!O21="○",1,0) -> 1 | H8: =신고서!C21 -> 3 | I8: =IF(신고서!X21="",0,1) -> 0 | J8: =IF(신고서!X21="○1",3,(IF(신고서!X21="○2",5,(IF(신고서!X21="○3",7,0))))) -> 0 | K8: =IF(신고서!U22="",0,1) -> 0 | L8: =IF(신고서!X22="○",1,0) -> 0 | M8: =IF(신고서!U21="○",1,0) -> 0 | N8: =IF(H8=3,IF(신고서!O21="",0,1),0) -> 1 | O8: =IF(신고서!O18=1,1,0) -> 0
D9: 부양가족2 | E9: =신고서!F23 -> 편람일 | F9: =신고서!F24 -> 481103-2019015 | G9: =IF(신고서!O23="○",1,0) -> 1 | H9: =신고서!C23 -> 2 | I9: =IF(신고서!X23="",0,1) -> 0 | J9: =IF(신고서!X23="○1",3,(IF(신고서!X23="○2",5,(IF(신고서!X23="○3",7,0))))) -> 0 | K9: =IF(신고서!U24="",0,1) -> 0 | L9: =IF(신고서!X24="○",1,0) -> 0 | M9: =IF(신고서!U23="○",1,0) -> 1 | O9: =IF(신고서!R18=1,1,0) -> 0
D10: 부양가족3 | E10: =신고서!F25 -> 이대한 | F10: =신고서!F26 -> 091206-4059631 | G10: =IF(신고서!O25="○",1,0) -> 1 | H10: =신고서!C25 -> 4 | I10: =IF(신고서!X25="",0,1) -> 0 | J10: =IF(신고서!X25="○1",3,(IF(신고서!X25="○2",5,(IF(신고서!X25="○3",7,0))))) -> 0 | K10: =IF(신고서!U26="",0,1) -> 0 | L10: =IF(신고서!X26="○",1,0) -> 0 | M10: =IF(신고서!U25="○",1,0) -> 0
D11: 부양가족4 | E11: =신고서!F27 -> 이민국 | F11: =신고서!F28 -> 151230-3059632 | G11: =IF(신고서!O27="○",1,0) -> 1 | H11: =신고서!C27 -> 4 | I11: =IF(신고서!X27="",0,1) -> 0 | J11: =IF(신고서!X27="○1",3,(IF(신고서!X27="○2",5,(IF(신고서!X27="○3",7,0))))) -> 0 | K11: =IF(신고서!U28="",0,1) -> 0 | L11: =IF(신고서!X28="○",1,0) -> 0 | M11: =IF(신고서!U27="○",1,0) -> 0
D12: 부양가족5 | E12: =신고서!H29 -> 0 | F12: =신고서!H30 -> 0 | G12: =IF(신고서!O29="○",1,0) -> 0 | H12: =신고서!C29 -> 0 | I12: =IF(신고서!X29="",0,1) -> 0 | J12: =IF(신고서!X29="○1",3,(IF(신고서!X29="○2",5,(IF(신고서!X29="○3",7,0))))) -> 0 | K12: =IF(신고서!U30="",0,1) -> 0 | L12: =IF(신고서!X30="○",1,0) -> 0 | M12: =IF(신고서!U29="○",1,0) -> 0
D13: 부양가족6 | E13: =신고서!H31 -> 0 | F13: =신고서!H32 -> 0 | G13: =IF(신고서!O31="○",1,0) -> 0 | H13: =신고서!C31 -> 0 | I13: =IF(신고서!X31="",0,1) -> 0 | J13: =IF(신고서!X31="○1",3,(IF(신고서!X31="○2",5,(IF(신고서!X31="○3",7,0))))) -> 0 | K13: =IF(신고서!U32="",0,1) -> 0 | L13: =IF(신고서!X32="○",1,0) -> 0 | M13: =IF(신고서!U31="○",1,0) -> 0
D14: 부양가족7 | E14: =신고서!H33 -> 0 | F14: =신고서!H34 -> 0 | G14: =IF(신고서!O33="○",1,0) -> 0 | H14: =신고서!C33 -> 0 | I14: =IF(신고서!X33="",0,1) -> 0 | J14: =IF(신고서!X33="○1",3,(IF(신고서!X33="○2",5,(IF(신고서!X33="○3",7,0))))) -> 0 | K14: =IF(신고서!U34="",0,1) -> 0 | L14: =IF(신고서!X34="○",1,0) -> 0 | M14: =IF(신고서!U33="○",1,0) -> 0
D15: 부양가족8 | E15: =신고서!H35 -> 0 | F15: =신고서!H36 -> 0 | G15: =IF(신고서!O35="○",1,0) -> 0 | H15: =신고서!C35 -> 0 | I15: =IF(신고서!X35="",0,1) -> 0 | J15: =IF(신고서!X35="○1",3,(IF(신고서!X35="○2",5,(IF(신고서!X35="○3",7,0))))) -> 0 | K15: =IF(신고서!U36="",0,1) -> 0 | L15: =IF(신고서!X36="○",1,0) -> 0 | M15: =IF(신고서!U35="○",1,0) -> 0
D16: 부양가족9 | E16: =신고서!H37 -> 0 | F16: =신고서!H38 -> 0 | G16: =IF(신고서!O37="○",1,0) -> 0 | H16: =신고서!C37 -> 0 | I16: =IF(신고서!X37="",0,1) -> 0 | J16: =IF(신고서!X37="○1",3,(IF(신고서!X37="○2",5,(IF(신고서!X37="○3",7,0))))) -> 0 | K16: =IF(신고서!U38="",0,1) -> 0 | L16: =IF(신고서!X38="○",1,0) -> 0 | M16: =IF(신고서!U37="○",1,0) -> 0
D17: 합계 | G17: =SUM(G7:G16) -> 5 | I17: 0 | J17: 0 | K17: 0 | L17: 0 | M17: 1

Sheet 신용카드
L3: ■ 조세특례제한법 시행규칙[별지 제74호의6서식] <개정(안) 2021. 11.> | AW3: (앞 쪽)
C4: 그밖의 소득공제 | L4: 신용카드 등 소득공제 신청서
L5: 거 주 자 성 명 | W5: =기본사항!G7 -> 이영화 | AD5: 생 년 월 일 | AK5: =LEFT(기본사항!G8,6) -> 123456
C6: 그 밖 의 소 득 공 제 | D6: 개인연금소득공제 | E6: 개인연금저축납입액 | F6: =#REF! ->  | G6: 원 | L6: 근 무 처 명 칭 | W6: =기본사항!G14 -> (주)조세통람 | AD6: 사업자등록번호 | AK6: =기본사항!G16 -> 203-81-11111
D7: 연금저축소득공제 | E7: 연금저축납입액 | G7: 원 | L7: 1. 공제대상자 및 신용카드등사용금액 명세
D8: 소기업소상공인부금 | E8: 연간불입금액 | F8: =#REF! ->  | G8: 원 | L8: 공제대상자 | Y8: 신용카드 등 사용금액
L9: ① 내·외국인 구분 | O9: ② 관계 | R9: ③ 성명 | V9: ④ 생년월일 | Y9: 자료 구분 | AA9: ⑤소 계 (⑥+⑦+⑧+⑨+⑩+⑪) | AD9: ⑥ 신용카드 | AG9: ⑦ 직불· 선불카드 등 | AJ9: ⑧ 현금 영수증 | AL9: ⑨도서공연 등 사용분 (총급여 7천만원 이하자만 기재) | AP9: ⑩ 전통시장 사용분 | AS9: ⑪ 대중교통 이용분 | AV9: ⑪-1 소비증가분
D10: 주택마련저축 소득공제 | E10: 청약저축 | F10: =IF(#REF!="",0,MIN(#REF!,1200000)) ->  | G10: 원 | AV10: 2020년 전체 사용분 | AW10: 2021년 전체 사용분
Y11: 국세청자료 | AD11: 12000000 | AG11: 4500000 | AS11: 1200000
Y12: 그 밖의 자료
Y13: 국세청자료
Y14: 그 밖의 자료
Y15: 국세청자료
Y16: 그 밖의 자료
Y17: 국세청자료
Y18: 그 밖의 자료
E19: 직불ㆍ선불카드(전통시장ㆍ대중교통사용분 제외) | F19: =#REF! ->  | G19: 원 | L19: ⑤-1 합 계 액 | AA19: =신고서!AG127 -> 0 | AD19: =신고서!AG120 -> 0 | AG19: =신고서!AG122 -> 0 | AJ19: =신고서!AG121 -> 0 | AL19: =신고서!AG123 -> 0 | AP19: =신고서!AG124 -> 0 | AS19: =신고서!AG125 -> 0 | AV19: =SUM(AV11:AV18) -> 0 | AW19: =SUM(AW11:AW18) -> 0
E20: 현금영수증(전통시장ㆍ대중교통사용분 제외) | F20: =#REF! ->  | G20: 원 | L20: 2. 신용카드등소득공제금액의 계산
E21: 전통시장사용분 | F21: =#REF! ->  | G21: 원 | L21: ⑫ 신용카드 사용분 공제금액 (⑥×15%) | P21: ⑬직불카드등 사용분 공제금액 (⑦+⑧)×30% | T21: ⑭도서공연 사용분 공제금액 (⑨×30%) | Y21: ⑮전통시장 사용분 공제금액 (⑩×40%) | AD21: ⑯대중교통 이용분 공제금액 (⑪×40%) | AI21: ⑰공제제외금액 계산 | AV21: ⑱ 2021년 신용카드등 사용금액 중 2020년 신용카드등 사용금액 대비 5%를 초과하여 증가한 금액의 10% [(2021년 신용카드등 사용금액)-(2020년 신용카드등 사용금액×105%)]×10%
E22: 대중교통사용분 | F22: =#REF! ->  | G22: 원 | AI22: ⑰-1 총급여 | AN22: ⑰-2 최저사용금액 (⑰-1×25%) | AR22: ⑰-3 공제제외금액
E23: 계 | F23: =#REF! ->  | G23: 원 | L23: =ROUNDDOWN(AD19*0.15,0) -> 0 | P23: =ROUNDDOWN((AG19+AJ19)*0.3,0) -> 0 | T23: =ROUNDDOWN(AL19*0.3,0) -> 0 | Y23: =ROUNDDOWN(AP19*0.4,0) -> 0 | AD23: =ROUNDDOWN(AS19*0.4,0) -> 0 | AI23: =영수증!T63 -> 25200000 | AN23: =ROUNDDOWN(AI23*0.25,0) -> 6300000 | AR23: =IF(AN23<=AD19,AP28,IF(AN23<=(AD19+AG19+AJ19+AL19),AP29,AP30)) -> 2520000 | AV23: =(AW19-AV19*1.05)*10% -> 0
D24: 우리사주소득공제 | E24: 우리사주출연금에 대한 소득공제 | F24: =#REF! ->  | G24: 원 | L24: ⑲공제가능금액 [⑫+⑬+⑭+⑮+⑯ -(⑰-3)+⑱] | P24: ⑳공제한도액 [총급여 수준별 200만원, 250만원, 300만원과 (⑰-1)×20% 중 적은 금액] | U24: ㉑일반 공제금액 (⑲과 ⑳ 중 적은 금액) | Z24: ㉒전통시장 추가 공제금액 [⑲ > ⑳인 경우에 ⑲-⑳과 ⑮(한도:100만원) 중 적은 금액] | AE24: ㉓대중교통 추가 공제금액 [⑲ > ⑳인 경우에 ⑲-⑳-㉒과⑯(한도:100만원) 중 적은 금액] | AJ24: ㉔도서ㆍ공연 등 추가 공제금액 [⑲ > ⑳인 경우에 ⑲-⑳-㉒-㉓과⑭(한도:100만원) 중 적은 금액] | AP24: (25)2021년 신용카드등 사용금액 중 2020년 신용카드등 사용금액 대비 소비증가분에 대한 추가 공제금액[⑲ > ⑳인 경우에 ⑲-⑳-㉒-㉓-㉔과⑱(한도:100만원) 중 적은 금액] | AV24: (26)최종 공제금액 (㉑+㉒+㉓+㉔+(25))
D25: 장기주식저축소득공제 | E25: 장기주식저축에 대한 소득공제 | F25: =#REF! ->  | G25: 원 | L25: =L23+P23+T23+Y23+AD23-AR23 -> -2520000 | P25: =ROUNDDOWN(IF(AI23>120000000,2000000,IF(AI23>70000000,2500000,MIN(3000000,(AI23*0.2)))),0) -> 3000000 | U25: =MIN(L25,P25) -> -2520000 | Z25: =IF(L25>P25,MIN(1000000,MIN(MAX(L25-P25,0),Y23)),0) -> 0 | AE25: =IF(L25>P25,MIN(1000000,MIN(MAX((L25-P25-Z25),0),AD23)),0) -> 0 | AJ25: =IF(L25>P25,MIN(1000000,MIN(MAX((L25-P25-Z25-AE25),0),T23)),0) -> 0 | AP25: =IF(L25>P25,MIN(1000000,MIN(MAX((L25-P25-Z25-AE25-AJ25),0),AV23)),0) -> 0 | AV25: =MAX((U25+Z25+AE25+AJ25+AP25),0) -> 0
D26: 고용유지 중소기업근로자소득공제 | E26: 전년대비 임금삭감액 | F26: =#REF! ->  | G26: 원 | L26: ⑰-3 계산
D27: 목돈안드는전세이자상환 | F27: =#REF! ->  | G27: 원 | L27: 구 분 | Y27: 계산식 | AP27: ⑰-3
L28: ⑥ ≥ (⑰-2) | Y28: (⑰-2)×15% | AP28: =ROUNDDOWN(AN23*0.15,0) -> 945000
L29: ⑥ + ⑦ + ⑧ + ⑨ ≥ (⑰-2) 〉⑥ | Y29: ⑥×15% + {(⑰-2) - ⑥}×30% | AP29: =ROUNDDOWN(L23+((AN23-AD19)*0.3),0) -> 1890000
L30: (⑰-2) > ⑥ + ⑦ + ⑧ + ⑨ | Y30: ⑥×15% + (⑦+⑧+⑨)×30% + {(⑰-2)-⑥-⑦-⑧-⑨}×40% | AP30: =ROUNDDOWN(L23+(AG19+AJ19+AL19)*0.3+(AN23-(AD19+AG19+AJ19+AL19))*0.4,0) -> 2520000
L31: 「조세특례제한법 시행령」제121조의2 제8항에 따라 신용카드등사용금액에 대한 소득공제를 신청합니다.
AN32: 2021년 | AQ32: 월 | AT32: 일
AF33: 신청인 : | AJ33: =W5 -> 이영화 | AM33: (서명 또는 인)
X34: 귀하
L36: 첨부 서류 | O36: 다음 각 호의 어느 하나에 해당하는 서류 1. 신용카드등사용금액확인서(별지 제74호의5서식을 말합니다) 1부 및 승차권 등 대중교통이용분임을 증명할 수 있는 서류(대중교통이용분이 있는 경우로 한정합니다) 2. 소득공제명세를 일괄적으로 기재하여 국세청장이 발급하는 서류(국세청 연말정산간소화 서비스(www.hometax.go.kr→조회/발급→연말정산간소화)에서 제공하는 연말정산소득공제 명세를 말합니다) | AR36: 수수료
AR37: 없음
AW38: 210mm×297mm

Sheet 기부금
B2: 기부금 공제 명세
B4: 구분 | G4: 기부금의 구분 | O4: 2022년 소득공제대상 이월기부금의 지출연도 | W4: 기부금액 | AS4: 소득공제액
B5: 기부금 소득공제 (이월분) | G5: 법정기부금 (법정, 코드10) | O5: 2013년 | W5: 0 | AK5: 법정기부금 한도계산을 위한 소득금액 | AS5: =IF(W5="",0,MIN(W5,AK11)) -> 0
G6: 우리사주기부금 (조특법88의4, 코드42) | W6: 0 | AK6: =MAX((AK10-AS10),0) -> 16170000
G7: 지정기부금 (지정, 코드40) | O7: 2013년 | W7: 0 | AK7: 지정기부금 한도계산을 위한 소득금액 | AS7: =IF(W7="",0,MIN(W7,AK13-AS5)) -> 0
G8: 지정기부금 (종교단체, 코드41) | O8: 2013년 | W8: 0 | AK8: =MAX((AK10-AS10-AS11-AS12),0) -> 16170000 | AS8: =IF(W8="",0,MIN(W8,AK14-AS5-AS7)) -> 0
B9: 구분 | G9: 기부금의 구분 | O9: 기부금의 지출연도 | W9: 기부금액 | AD9: 기부금합계 | AK9: 한도액 | AS9: 소득공제대상 (이월포함) | AZ9: 세액공제대상 (이월제외) | BG9: 세액공제액
B10: 기부금 세액공제 | G10: 정치자금기부금 (조특법76, 코드20) | O10: 2022년 | AD10: =W10 -> 0 | AK10: =영수증!T65 -> 16170000 | AZ10: =MIN(AD10,AK10) -> 0 | BG10: =ROUNDDOWN(IF(AZ10<=29900000,(AZ10*0.15),(AZ10-29900000)*0.25+4485000),0) -> 0
G11: 법정기부금 (법정, 코드10) | O11: 2017년~2022년 | AD11: =W11 -> 0 | AK11: =MAX(AK10-AS10,0) -> 16170000 | AS11: =MIN(AD11,AK11) -> 0 | AZ11: =MAX((AS11-AS5),0) -> 0 | BG11: =IF(BG15=0,0,ROUNDDOWN((AZ11/AZ15)*BG15,0)) -> 0
G12: 우리사주기부금 (조특법88의4, 코드42) | O12: 2022년 | W12: 0 | AD12: =W12 -> 0 | AK12: =MAX((AK10-AS10-AS11)*0.3,0) -> 4851000 | AZ12: =MIN(AD12,AK12) -> 0 | BG12: =IF(BG15=0,0,ROUNDDOWN((AZ12/AZ15)*BG15,0)) -> 0
G13: 지정기부금 (지정, 코드40) | O13: 2017년~2022년 | W13: 0 | AD13: =W7+W13 -> 0 | AK13: =IF(AD14>0,(AK8*0.1)+MIN((AK8*0.2),W13),AK8*0.3) -> 4851000 | AS13: =MIN(AD13,AK13) -> 0 | AZ13: =MAX(((AS13-AS7)+(AS14-AS8)),0) -> 0 | BG13: =IF(BG15=0,0,ROUNDDOWN((AZ13/AZ15)*BG15,0)) -> 0
G14: 지정기부금 (종교단체, 코드41) | O14: 2017년~2022년 | W14: 0 | AD14: =W8+W14 -> 0 | AK14: =AK13 -> 4851000 | AS14: =MIN(AD14,AK14-AS13) -> 0
G15: 0 | W15: 0 | AS15: =SUM(AS10:AY14) -> 0 | AZ15: =SUM(AZ11:BF14) -> 0 | BG15: =ROUNDDOWN(IF(AZ15<=10000000,(AZ15*0.2),(AZ15-10000000)*0.35+2000000),0) -> 0

Sheet 기부금 이월

Sheet 감면
C7: 세액감면 | G7: 감면액 계산 테이블
C8: 구 분 | D8: 감면세액 계산식 | E8: 감면세액 | H8: 산출세액 | I8: 감면대상금액 (입력) | J8: 총급여액 또는 종합소득금액 | K8: 감면율 | L8: 감면세액
C9: 해외조광권자 등이 외국인에게 지급하는 급여 | D9: 종합소득산출세액×(감면대상근로소득금액÷종합소득금액) | G9: 조광권자 | H9: =#REF! ->  | J9: 1 | L9: =(H9*I9/J9)*K9 -> 
C10: 중소기업 취업자 세액감면 (조세특례제한법 제30조) | D10: 산출세액 ×(감면대상총급여액 ÷총급여액)×(50%,70%,90%,100%) | E10: =L10 -> 0 | G10: 중소기업 취업자 | H10: =영수증!AN65 -> 217872 | I10: 0 | J10: =영수증!T63 -> 25200000 | K10: 0.7 | L10: =ROUNDDOWN((H10*I10/J10)*K10,0) -> 0 | M10: =ROUNDDOWN(MAX(0, MIN(영수증!AL71,영수증!AM71))*(1-(감면!I10*감면!K10)/영수증!T63),0) -> 119829
C13: 감면대상자/취업일 | D13: 감면율
C14: 청년 '12~'13년 | D14: 100%(한도없음). 단 '18년 이후 90%(150만원 한도)
C15: 청년 '14~'15년 | D15: 50%(한도없음). 단 '18년 이후 90%(150만원 한도)
C16: 청년 '16~'17년 | D16: 70%(한도없음). 단 '18년 이후 90%(150만원 한도)
C17: 청년 '18~'23년 | D17: 90%(150만원 한도)
C18: 60세이상자 장애인 '14~'15년 | D18: 50%(한도없음)
C19: 60세이상자 장애인 '16~'21년 | D19: 70%(150만원 한도)
C20: 경력단절여성 '17~'21년 | D20: 70%(150만원 한도)
C21: * 취업일부터 3년(청년 5년)간 70%(청년 90%) 감면(연 150만원 한도)

Sheet 영수증
B2: ■ 소득세법 시행규칙 [별지 제24호서식(1)] <2022. 03. 18. 개정> | AV2: (제1쪽)
C4: 관리 번호 | AJ4: 거주구분 | AN4: 거주자1 | AT4: 비거주자2
T5: 근로소득 원천징수영수증 | AJ5: 거주지국 | AM5: =신고서!AK10 -> 한국 | AQ5: 거주지국코드 | AU5: =신고서!AT10 -> KR
T6: 근 로 소 득 지 급 명 세 서 | AJ6: 내외국인 | AM6: FALSE | AN6: 내국인1 | AS6: TRUE | AT6: 외국인9
AJ7: 외국인단일세율적용 | AR7: FALSE | AS7: 여1 | AT7: TRUE | AU7: 부2
O8: ( | Q8: 소득자보관용 | V8: 발행자보관용 | AC8: 발행자보고용) | AJ8: 외국법인소속파견근로자여부 | AR8: FALSE | AS8: 여1 | AT8: TRUE | AU8: 부2
AJ9: 종교관련종사자 여부 | AR9: FALSE | AS9: 여1 | AT9: TRUE | AU9: 부2
AJ10: 국적 | AM10: =신고서!AK7 -> 한국 | AQ10: 국적코드 | AU10: =신고서!AT7 -> KR
AJ11: 세대주여부 | AN11: 세대주1 | AT11: 세대원2
AJ12: 연말정산구분 | AN12: 계속근로1, 중도퇴사2
B14: 징수 의무자 | I14: (1) 법 인 명 (상 호) | R14: =기본사항!$G$14 -> (주)조세통람 | AC14: (2) 대 표 자(성명) | AK14: =기본사항!$G$15 -> 김철수
I15: (3) 사업자등록번호 | R15: =기본사항!$G$16 -> 203-81-11111 | AC15: (4) 주 민 등 록 번 호 | AK15: =기본사항!$G$17 -> 123456-1234567
I16: (3)-1 사업자단위과세자 여부 | R16: 여1 / 부1 | X16: FALSE | AC16: (3)-2 종사업장 일련번호
I17: (5) 소 재 지 (주 소) | R17: =기본사항!$G$18 -> 서울 중구 동호로14길 5-6 | X17: TRUE
B18: 소득자 | I18: (6) 성 명 | R18: =기본사항!$G$7 -> 이영화 | AC18: (7) 주 민 등 록 번 호 | AK18: =기본사항!$G$8 -> 123456-1234567
I19: (8) 주 소 | R19: =기본사항!$G$9 -> 서울 중구 다산로11길 25
B21: Ⅰ 근무처별소득명세 | C21: 구 분 | R21: 주(현) | W21: 종(전) | AC21: 종(전) | AI21: (16)-1납세조합 | AQ21: 합 계
C22: (9) 근 무 처 명 | R22: =R14 -> (주)조세통람 | W22: =급여내역!M22 -> ㈜우인 | AC22: =급여내역!M29 -> 0 | AI22: =급여내역!M36 -> 0
C23: (10) 사업자등록번호 | R23: =R15 -> 203-81-11111 | W23: =급여내역!AI22 -> 101-81-22222 | AC23: =급여내역!AI29 -> 0 | AI23: =급여내역!AI36 -> 0
C24: (11) 근무기간 | R24: =TEXT(급여내역!BG4,"yy/mm/dd")&"~"&TEXT(급여내역!BO4,"yy/mm/dd") -> 21/01/01~21/12/31 | W24: =IF(급여내역!BG22="","",TEXT(급여내역!BG22,"yy/mm/dd")&"~"&TEXT(급여내역!BO22,"yy/mm/dd")) ->  | AC24: =IF(급여내역!BG29="","",TEXT(급여내역!BG29,"yy/mm/dd")&"~"&TEXT(급여내역!BO29,"yy/mm/dd")) ->  | AI24: =IF(급여내역!BG36="","",TEXT(급여내역!BG36,"yy/mm/dd")&"~"&TEXT(급여내역!BO36,"yy/mm/dd")) ->  | AQ24: ~
C25: (12) 감면기간 | R25: ~ | W25: ~ | AC25: ~ | AI25: ~ | AQ25: ~
C26: (13) 급 여 | R26: =급여내역!H20 -> 25200000 | W26: =급여내역!H26 -> 0 | AC26: =급여내역!H33 -> 0 | AI26: =급여내역!H40 -> 0 | AQ26: =SUM(R26:AN26) -> 25200000
C27: (14) 상 여 | R27: =급여내역!M20 -> 0 | W27: =급여내역!M26 -> 0 | AC27: =급여내역!M33 -> 0 | AI27: =급여내역!M40 -> 0 | AQ27: 0
C28: (15) 인 정 상 여 | R28: =급여내역!Q20 -> 0 | W28: =급여내역!Q26 -> 0 | AC28: =급여내역!Q33 -> 0 | AI28: =급여내역!Q40 -> 0 | AQ28: 0
C29: (15)-1 주식매수선택권 행사이익 | R29: =급여내역!U20 -> 0 | W29: =급여내역!U26 -> 0 | AC29: =급여내역!U33 -> 0 | AI29: =급여내역!U40 -> 0 | AQ29: 0
C30: (15)-2 우리사주조합인출금 | R30: =급여내역!V20 -> 0 | W30: =급여내역!V26 -> 0 | AC30: =급여내역!V33 -> 0 | AI30: =급여내역!V40 -> 0 | AQ30: 0
C31: (15)-3 임원 퇴직소득금액 한도초과액 | R31: =급여내역!W20 -> 0 | W31: =급여내역!W26 -> 0 | AC31: =급여내역!W33 -> 0 | AI31: =급여내역!W40 -> 0 | AQ31: 0
C32: (15)-4 직무발명보상금 | R32: =급여내역!X20 -> 0 | W32: =급여내역!X26 -> 0 | AC32: =급여내역!X33 -> 0 | AI32: =급여내역!X40 -> 0 | AQ32: 0
C33: (16) 계 | R33: =SUM(R26:V32) -> 25200000 | W33: =SUM(W26:AB32) -> 0 | AC33: =SUM(AC26:AH32) -> 0 | AI33: =SUM(AI26:AN32) -> 0 | AQ33: =SUM(AQ26:AV32) -> 25200000
B34: Ⅱ 비과세및감면소득명세 | C34: (18) 국외근로 | O34: M0X | R34: =급여내역!BB20 -> 0 | W34: =급여내역!BB26 -> 0 | AC34: =급여내역!BB33 -> 0 | AI34: =급여내역!BB40 -> 0 | AQ34: =SUM(R34:AN34) -> 0
C35: (18)-1 야간근로수당 | O35: O0X | R35: =급여내역!BK20 -> 0 | W35: =급여내역!BK26 -> 0 | AC35: =급여내역!BK33 -> 0 | AI35: =급여내역!BK40 -> 0 | AQ35: =SUM(R35:AN35) -> 0
C36: (18)-2 출산.보육수당 | O36: Q0X | R36: =급여내역!BO20 -> 0 | W36: =급여내역!BO26 -> 0 | AC36: =급여내역!BO33 -> 0 | AI36: =급여내역!BO40 -> 0 | AQ36: =SUM(R36:AN36) -> 0
C37: (18)-4 연구보조비 | O37: H0X | R37: =급여내역!BF20 -> 0 | W37: =급여내역!BF26 -> 0 | AC37: =급여내역!BF33 -> 0 | AI37: =급여내역!BF40 -> 0 | AQ37: 0
C38: (18)-5 | AQ38: 0
C39: (18)-6 | AQ39: 0
C40: ~ | AQ40: 0
C41: (18)-34 | AQ41: =SUM(R41:AN41) -> 0
C42: (19) 수련보조수당 | O42: Y22 | AQ42: 0
C43: (20) 비과세소득 계 | R43: =SUM(R34:V42) -> 0 | W43: =SUM(W34:AB42) -> 0 | AC43: =SUM(AC34:AH42) -> 0 | AI43: =SUM(AI34:AN42) -> 0 | AQ43: =SUM(R43:AN43) -> 0
C44: (20)-1 감면소득 계
B45: Ⅲ 세액명세 | C45: 구 분 | V45: (78) 소 득 세 | AE45: (79) 지 방 소 득 세 | AL45: (80) 농 어 촌 특 별 세
C46: (72) 결 정 세 액 | V46: =AN116 -> 98028 | AE46: =ROUNDDOWN(V46*0.1,0) -> 9802 | AL46: =ROUNDDOWN(AN111*0.2,0) -> 0
C47: 기납부세액 | G47: (73)종(전)근무지(결정세액란의 세액기재) | K47: 사업자등록번호 | M47: =급여내역!AI22 -> 101-81-22222 | V47: =급여내역!AL26 -> 0 | AE47: =급여내역!AP26 -> 0 | AL47: =급여내역!AT26 -> 0
M48: =급여내역!AI29 -> 0 | V48: =급여내역!AL33 -> 0 | AE48: =급여내역!AP33 -> 0 | AL48: =급여내역!AT33 -> 0
M49: =급여내역!AI36 -> 0 | V49: =급여내역!AL40 -> 0 | AE49: =급여내역!AP40 -> 0 | AL49: =급여내역!AT40 -> 0
G50: (74)주(현)근무지 | V50: =급여내역!AL20 -> 272880 | AE50: =급여내역!AP20 -> 24970 | AL50: =급여내역!AT20 -> 0
C51: (75) 납부특례세액
C52: (76)차감징수세액((72)-(73)-(74)-(75)) | V52: =IF(ROUNDDOWN(V46-V47-V48-V49-V50-V51,-1)<0,ROUNDDOWN(V46-V47-V48-V49-V50-V51,-1),IF(ROUNDDOWN(V46-V47-V48-V49-V50-V51,-1)>=1000,ROUNDDOWN(V46-V47-V48-V49-V50-V51,-1),0)) -> -174850 | AE52: =IF(ROUNDDOWN(AE46-AE47-AE48-AE49-AE50-AE51,-1)<0,ROUNDDOWN(AE46-AE47-AE48-AE49-AE50-AE51,-1),IF(ROUNDDOWN(AE46-AE47-AE48-AE49-AE50-AE51,-1)>=1000,ROUNDDOWN(AE46-AE47-AE48-AE49-AE50-AE51,-1),0)) -> -15160 | AL52: =IF(ROUNDDOWN(AL46-AL47-AL48-AL49-AL50-AL51,-1)<0,ROUNDDOWN(AL46-AL47-AL48-AL49-AL50-AL51,-1),IF(ROUNDDOWN(AL46-AL47-AL48-AL49-AL50-AL51,-1)>=1000,ROUNDDOWN(AL46-AL47-AL48-AL49-AL50-AL51,-1),0)) -> 0
M53: 위의 원천징수액(근로소득)을 정히 영수(지급)합니다
O55: =기본사항!G19 -> 2023-03-02
Z56: 징수(보고)의무자 | AH56: =기본사항!G15 -> 김철수 | AU56: (서명 또는 인)
G58: =기본사항!G20 -> 중부세무서장 | O58: 귀하
AV61: 210㎜×297㎜
AV62: (제2쪽)
B63: Ⅳ 정 산 명 세 | C63: (21) 총 급 여 ((16), 다만 외국인단일세율 적용시에는 연간 근로소득) | T63: =AQ33 -> 25200000 | Z63: (48) 종합소득과세표준 | AN63: =T102-T115+T116 -> 3631200
C64: (22) 근 로 소 득 공 제 | T64: =ROUNDDOWN(IF(T63>100000000,(T63*0.02+12750000),IF(T63>45000000,(T63*0.05+9750000),IF(T63>15000000,(T63*0.15+5250000),IF(T63>5000000,(T63*0.4+1500000),IF(T63>0,(T63*0.7)))))),0) -> 9030000
C65: (23) 근 로 소 득 금 액 | T65: =T63-T64 -> 16170000 | Z65: (49) 산 출 세 액 | AN65: =ROUNDDOWN(IF(AN63>1000000000,(AN63*0.45-65400000),IF(AN63>500000000,(AN63*0.42-35400000),IF(AN63>300000000,(AN63*0.4-25400000),IF(AN63>150000000,(AN63*0.38-19400000),IF(AN63>88000000,(AN63*0.35-14900000),IF(AN63>46000000,(AN63*0.24-5220000),IF(AN63>12000000,(AN63*0.15-1080000),IF(AN63>0,(AN63*0.06))))))))),0) -> 217872
C66: 종합소득공제 | D66: 기 본 공 제 | I66: (24) 본인 | T66: =MIN(IF(인적공제!E7="","",1500000),T65) -> 1500000 | Z66: 세 액 감 면 | AC66: (50) 소 득 세 법 | AN66: 0
I67: (25) 배우자 | T67: =MIN(IF(인적공제!N8=0,0,1500000),MAX(T65-T66,0)) -> 1500000 | AC67: (51) 조세특례제한법((52) 제외) | AN67: 0
I68: (26) 부양가족 ( | O68: =인적공제!G17-인적공제!G7-인적공제!N8 -> 3 | P68: ) | Q68: 명 | T68: =MIN((O68*1500000),MAX(T65-SUM(T66:Y67))) -> 4500000 | AC68: (52) 조세특례제한법 제30조 | AN68: =IF(감면!E10="",0,MIN(감면!E10,MAX((AN65-SUM(AN66:AV67)),0))) -> 0
D69: 추 가 공 제 | I69: (27) 경로우대 ( | O69: =인적공제!M17 -> 1 | P69: ) | Q69: 명 | T69: =MIN(O69*1000000,MAX(T65-SUM(T66:Y68),0)) -> 1000000 | AC69: (53) 조 세 조 약 | AN69: 0
I70: (28) 장애인 ( | N70: =인적공제!K17 -> 0 | O70: ) | P70: 명 | T70: =MIN(N70*2000000,MAX(T65-SUM(T66:Y69),0)) -> 0 | AC70: (54) 세 액 감 면 계 | AN70: =SUM(AN66:AV69) -> 0
I71: (29) 부녀자 | T71: =IF(T65<=30000000,MIN(IF(인적공제!O8=1,500000,0),MAX(T65-SUM(T66:Y70),0)),0) -> 0 | Z71: 세 액 공 제 | AC71: (55) 근로소득 | AL71: =ROUNDDOWN(IF(AN65>1300000,(AN65*0.3+325000),AN65*0.55),0) -> 119829 | AM71: =ROUNDDOWN(IF(T63>70000000,MAX(500000,(660000-(T63-70000000)*0.5)),IF(T63>33000000,MAX(660000,(740000-(T63-33000000)*0.008)),740000)),0) -> 740000 | AN71: =IF(AN68>0,감면!M10,MIN(MIN(AL71,AM71),MAX((AN65-AN70),0))) -> 119829
I72: (30) 한 부 모 가 족 | T72: =MIN(IF(인적공제!O9=1,1000000,0),MAX(T65-SUM(T66:Y71),0)) -> 0 | AC72: (56) 자녀 | AE72: 공제대상자녀 | AJ72: ( | AK72: =인적공제!L17 -> 0 | AL72: ) | AM72: 명 | AN72: =MIN(IF(AK72=1,150000,IF(AK72=2,300000,IF(AK72>2,((AK72-2)*300000+300000),0))),MAX((AN65-AN70-AN71),0)) -> 0
D73: 연 금 보 험 료 공 제 | I73: (31) 국민연금보험료 | S73: 대상금액 | T73: =T74 -> 1134000
S74: 공제금액 | T74: =MIN(신고서!AS78+신고서!AS79,MAX(T65-SUM(T66:Y72),0)) -> 1134000
I75: (32) 공적 연금 보험료공제 | K75: ㉮공무원연금 | S75: 대상금액 | T75: =T76 -> 300000 | AE75: 출산·입양자 | AJ75: ( | AK75: =인적공제!I17 -> 0 | AL75: ) | AM75: 명 | AN75: =IF(AK75>=1,인적공제!J17*100000,0) -> 0
S76: 공제금액 | T76: =MIN(신고서!AS80+신고서!AS81,MAX(T65-SUM(T66:Y73),0)) -> 300000
K77: ㉯군인연금 | S77: 대상금액 | T77: =T78 -> 0 | AC77: 연금 계좌 | AE77: (57)「과학기술인공제회법」에 따른 퇴직연금 | AJ77: 공제대상금액 | AN77: =신고서!AM143 -> 100
S78: 공제금액
K79: ㉰사립학교교직원연금 | S79: 대상금액 | T79: =T80 -> 0 | AJ79: 세액공제액 | AN79: =IF(T63<=55000000,ROUNDDOWN(AN77*0.15,0),ROUNDDOWN(AN77*0.12,0)) -> 15
S80: 공제금액
K81: ㉱별정우체국연금 | S81: 대상금액 | T81: =T82 -> 0 | AE81: (58)「근로자퇴직급여 보장법」에 따른 퇴직연금 | AJ81: 공제대상금액 | AN81: =신고서!AM144 -> 0
S82: 공제금액
D83: 특 별 소 득 공 제 | I83: (33) 보험료 | K83: ㉮건강보험료 (노인장기요양보험료포함) | S83: 대상금액 | T83: =T84 -> 883200 | AJ83: 세액공제액 | AN83: =IF(T63<=55000000,ROUNDDOWN(AN81*0.15,0),ROUNDDOWN(AN81*0.12,0)) -> 0
S84: 공제금액 | T84: =MIN(신고서!AS83+신고서!AS84,MAX(T65-SUM(T66:Y81),0)) -> 883200
K85: ㉯고용보험료 | S85: 대상금액 | T85: =T86 -> 201600 | AE85: (59)연금저축 | AJ85: 공제대상금액 | AN85: =신고서!AM145 -> 0
S86: 공제금액 | T86: =MIN(신고서!AS85+신고서!AS86,MAX(T65-SUM(T66:Y83),0)) -> 201600
I87: (34) 주택 자금 | K87: ㉮주택임차차입금원리금상환액 | O87: 대출기관 | T87: =MIN(신고서!AS88,MAX(T65-SUM(T66:Y85),0)) -> 1520000 | AJ87: 세액공제액 | AN87: =IF(T63<=55000000,ROUNDDOWN(AN85*0.15,0),ROUNDDOWN(AN85*0.12,0)) -> 0
AC88: 특별세액공제 | AE88: (60) 보험료 | AG88: 보장성 | AJ88: 공제대상금액 | AN88: =신고서!AM148 -> 0
O89: 거주자 | T89: =MIN(신고서!AS89,MAX(T65-SUM(T66:Y87),0)) -> 0 | AJ89: 세액공제액 | AN89: =신고서!BC148 -> 0
AG90: 장애인전용 보장성 | AJ90: 공제대상금액 | AN90: =신고서!AM149 -> 0
K91: ㉯ 장기 주택 저당 차입금 이자 상환액 | M91: 2011년이전차입분 | O91: 15년미만 | T91: =MIN(신고서!AS90,MAX(T65-SUM(T66:Y90),0)) -> 0 | AJ91: 세액공제액 | AN91: =신고서!BC149 -> 0
O92: 15년~29년 | T92: =MIN(신고서!AS91,MAX(T65-SUM(T66:Y91),0)) -> 0 | AE92: (61)의료비 | AJ92: 공제대상금액 | AN92: =신고서!AM155 -> 0
O93: 30년이상 | T93: =MIN(신고서!AS92,MAX(T65-SUM(T66:Y92),0)) -> 0 | AJ93: 세액공제액 | AN93: =신고서!BC155 -> 0
M94: 2012년이후차입분(15년이상) | O94: 고정금리이거나 비거치상환대출 | T94: =MIN(신고서!AS93,MAX(T65-SUM(T66:Y93),0)) -> 0 | AE94: (62)교육비 | AJ94: 공제대상금액 | AN94: =신고서!AM162 -> 0
O95: 그 밖의 대출 | T95: =MIN(신고서!AS94,MAX(T65-SUM(T66:Y94),0)) -> 0 | AJ95: 세액공제액 | AN95: =신고서!BC162 -> 0
M96: 2015년 이후 차입분 | O96: 15년 이상 | P96: 고정금리이면서, 비거치상환 대출 | T96: =MIN(신고서!AS95,MAX(T65-SUM(T66:Y95),0)) -> 0 | AE96: (63)기부금 | AF96: ㉮ 정치자금기부금 | AH96: 10만원이하 | AJ96: 공제대상금액 | AN96: =신고서!AM163 -> 0
P97: 고정금리이거나, 비거치상환 대출 | T97: =MIN(신고서!AS96,MAX(T65-SUM(T66:Y96),0)) -> 0 | AJ97: 세액공제액 | AN97: =신고서!BC163 -> 0
P98: 그 밖의 대출 | T98: =MIN(신고서!AS97,MAX(T65-SUM(T66:Y97),0)) -> 0 | AH98: 10만원초과 | AJ98: 공제대상금액 | AN98: =신고서!AM164 -> 0
O99: 10년~15년 | P99: 고정금리이거나, 비거치상환 | T99: =MIN(신고서!AS98,MAX(T65-SUM(T66:Y98),0)) -> 0 | AJ99: 세액공제액 | AN99: =신고서!BC164 -> 0
I100: (35) 기부금(이월분) | T100: =MIN(신고서!AS103,MAX(T65-SUM(T66:Y96),0)) -> 0 | AF100: ㉯ 「소득세법」 제34조 제2항 제1호에 따른 기부금 | AJ100: 공제대상금액 | AN100: =신고서!AM165 -> 0
I101: (36) 계 | T101: =IF(T65=0,0,SUM(T84,T86,T87:Y100)) -> 2604800 | AJ101: 세액공제액 | AN101: =신고서!BC165 -> 0
C102: (37) 차 감 소 득 금 액 | T102: =MAX(0,T65-SUM(T66:Y72,T74,T76,T78,T80,T82)-T101) -> 3631200 | AF102: ㉰ 우리사주 조합기부금 | AJ102: 공제대상금액 | AN102: =신고서!AM166 -> 0
C103: 그 밖 의 소 득 공 제 | G103: (38) 개인연금저축 | T103: =MIN(신고서!AS104,T102) -> 0 | AJ103: 세액공제액 | AN103: =신고서!BC166 -> 0
G104: (39)소기업·소상공인공제부금 | T104: =MIN(신고서!AS105,MAX((T102-T103),0)) -> 0 | AF104: ㉱ 「소득세법」제34조 제3항 제1호의 기부금(종교단체 외) | AJ104: 공제대상금액 | AN104: =신고서!AM167 -> 0
G105: (40)주택 마련저축소득공제 | K105: ㉮청약저축 | T105: =MIN(신고서!$AS$106,MAX((T102-SUM(T103:T104)),0)) -> 0 | AJ105: 세액공제액 | AN105: =신고서!BC167 -> 0
AF106: ㉲ 소득세법」제34조 제3항 제1호의 기부금(종교단체) | AJ106: 공제대상금액 | AN106: =신고서!AM168 -> 0
K107: ㉯주택청약종합저축 | T107: =MIN(신고서!$AS$108,MAX((T102-SUM(T103:T105)),0)) -> 0 | AJ107: 세액공제액 | AN107: =신고서!BC168 -> 0
K108: ㉰근로자주택마련저축 | T108: =MIN(신고서!$AS$107,MAX((T102-SUM(T103:T107)),0)) -> 0 | AE108: (64)계 | AN108: =AN89+AN91+AN93+AN95+AN97+AN99+AN101+AN103+AN105+AN107 -> 0
G109: (41)투자조합출자 등 | T109: =MIN(신고서!AS119,MAX((T102-SUM(T103:T108)),0)) -> 0 | AE109: (65)표준세액공제 | AM109: =(T84+T86+SUM(T87:Y90)+SUM(T91:Y100))*0.12+AN89+AN91+AN93+AN95+AN101+AN105+AN107+AN114 -> 312576 | AN109: =IF(AM109>130000,"",130000) -> 
G110: (42)신용카드등 사용액 | T110: =MIN(신고서!$AS$127,MAX((T102-SUM(T103:T109)),0)) -> 0 | AC110: (66) 납 세 조 합 공 제 | AN110: =급여내역!P42 -> 0
G111: (43) 우리사주조합 출연금 | T111: =MIN(신고서!$AS$128,MAX((T102-SUM(T103:T110)),0)) -> 0 | AC111: (67) 주 택 차 입 금 | AN111: =신고서!AS176 -> 0
AC112: (68) 외 국 납 부 | AN112: =IF(T65=0,0,MIN(신고서!AG172,(AN65*(신고서!AS170/영수증!T65)))) -> 0
G113: (44)고용유지 중소기업 근로자 | T113: =MIN(신고서!$AS$129,MAX((T102-SUM(T103:T112)),0)) -> 0 | AC113: (69) 월세액 | AJ113: 공제대상금액 | AN113: =신고서!AG177 -> 0
G114: (45)장기집합투자증권저축 | T114: =MIN(신고서!AS130,MAX((T102-SUM(T103:T113)),0)) -> 0 | AJ114: 세액공제액 | AN114: =신고서!AS177 -> 0
G115: (46)그밖의소득공제 계 | T115: =SUM(T103:Y114) -> 0 | AC115: (70) 세액공제 계 | AN115: =MIN((AN71+AN72+AN75+AN79+AN83+AN87+MAX(AN108,AN109)+AN110+AN111+AN112+AN114),MAX(0,(AN65-AN70))) -> 119844
C116: (47) 소득공제 종합한도 초과액 | T116: =MAX((SUM(T87:Y100)+SUM(T104:Y111)-T109+T114)-25000000,0) -> 0 | Z116: (71) 결 정 세 액( (49)-(54)-(70) ) | AN116: =MAX(0,+AN65-AN70-AN115) -> 98028
Z117: (81) 실효세율(%)( (71)/(21) )x100 | AN117: =+AN116/T63*100 -> 0.389
AV118: 210㎜×297㎜
B119: (77) 소득·세액공제 명세[인적공제항목은 해당란에 "○"표시(장애인 해당 시 해당 코드 기재)를 하며, 각종 소득공제·세액공제 항목은 공제를 위하여 실제 지출한 금액을 적습니다.]
B121: 인적공제항목 | W121: 각종 소득공제ㆍ세액공제 항목
B122: 관계코드 | E122: 성명 | M122: 기본공제 | S122: 경로우대 | U122: 출산입양 | W122: 자료 구분 | Z122: 보험료 | AH122: 의료비 | AS122: 교육비
B123: 내ㆍ외 국인 | E123: 주민등록번호 | M123: 부녀자 | P123: 한부모 | S123: 장애인 | U123: 자녀 | Z123: 건강 | AB123: 고용 | AD123: 보장성 | AF123: 장애인 전용 보장성 | AH123: 일반 | AJ123: 난임 | AL123: 65세이상•장애인 건강보험산정 특례자 | AQ123: 실손의료 보험금 | AS123: 일반 | AU123: 장애인 특수교육
B124: 인적공제 항목에 해당하는 | M124: =신고서!O17 -> 5 | S124: =신고서!U17 -> 1 | U124: =신고서!X17 -> 0 | W124: 국세청계 | Z124: =신고서!AE17 -> 0 | AB124: =신고서!AG17 -> 0 | AD124: =신고서!AI17 -> 0 | AF124: =신고서!AK17 -> 0 | AH124: =신고서!AM17 -> 0 | AJ124: =신고서!AO17 -> 0 | AL124: =신고서!AQ17 -> 0 | AQ124: =신고서!AS17 -> 0 | AS124: =신고서!BC17 -> 0 | AU124: =신고서!BE17 -> 0
B125: 인원수를 기재 (자녀: | K125: =신고서!L18 -> 0 | L125: 명) | M125: =신고서!O18 ->  | P125: =신고서!R18 ->  | S125: =신고서!U18 -> 0 | U125: =신고서!X18 -> 0 | W125: 기타계 | Z125: =신고서!AE18 -> 883200 | AB125: =신고서!AG18 -> 201600 | AD125: =신고서!AI18 -> 0 | AF125: =신고서!AK18 -> 0 | AH125: =신고서!AM18 -> 0 | AJ125: =신고서!AO18 -> 0 | AL125: =신고서!AQ18 -> 0 | AQ125: =신고서!AS18 -> 0 | AS125: =신고서!BC18 -> 0 | AU125: =신고서!BE18 -> 0
B126: =신고서!C19 -> 0 | E126: =신고서!F19 -> 이영화 | M126: =신고서!O19 -> ○ | S126: =신고서!U19 -> 0 | U126: =신고서!X19 -> 0 | W126: 국세청 | Z126: =신고서!AE19 -> 0 | AB126: =신고서!AG19 -> 0 | AD126: =신고서!AI19 -> 0 | AF126: =신고서!AK19 -> 0 | AH126: =신고서!AM19 -> 0 | AJ126: =신고서!AO19 -> 0 | AL126: =신고서!AQ19 -> 0 | AQ126: =신고서!AS19 -> 0 | AS126: =신고서!BC19 -> 0 | AU126: =신고서!BE19 -> 0
B127: =신고서!C20 -> 1 | G127: =신고서!F20 -> (근로자 본인) | M127: =신고서!O20 -> 0 | P127: =신고서!R20 -> 0 | S127: =신고서!U20 -> 0 | U127: =신고서!X20 -> 0 | W127: 기타 | Z127: =신고서!AE20 -> 883200 | AB127: =신고서!AG20 -> 201600 | AD127: =신고서!AI20 -> 0 | AF127: =신고서!AK20 -> 0 | AH127: =신고서!AM20 -> 0 | AJ127: =신고서!AO20 -> 0 | AL127: =신고서!AQ20 -> 0 | AQ127: =신고서!AS20 -> 0 | AS127: =신고서!BC20 -> 0 | AU127: =신고서!BE20 -> 0
B128: =신고서!C21 -> 3 | E128: =신고서!F21 -> 조세희 | M128: =신고서!O21 -> ○ | S128: =신고서!U21 -> 0 | U128: =신고서!X21 -> 0 | W128: 국세청 | Z128: =신고서!AE21 -> 0 | AB128: =신고서!AG21 -> 0 | AD128: =신고서!AI21 -> 0 | AF128: =신고서!AK21 -> 0 | AH128: =신고서!AM21 -> 0 | AJ128: =신고서!AO21 -> 0 | AL128: =신고서!AQ21 -> 0 | AQ128: =신고서!AS21 -> 0 | AS128: =신고서!BC21 -> 0 | AU128: =신고서!BE21 -> 0
B129: =신고서!C22 -> 1 | G129: =신고서!F22 -> 710415-2031653 | M129: =신고서!O22 -> 0 | P129: =신고서!R22 -> 0 | S129: =신고서!U22 -> 0 | U129: =신고서!X22 -> 0 | W129: 기타 | Z129: =신고서!AE22 -> 0 | AB129: =신고서!AG22 -> 0 | AD129: =신고서!AI22 -> 0 | AF129: =신고서!AK22 -> 0 | AH129: =신고서!AM22 -> 0 | AJ129: =신고서!AO22 -> 0 | AL129: =신고서!AQ22 -> 0 | AQ129: =신고서!AS22 -> 0 | AS129: =신고서!BC22 -> 0 | AU129: =신고서!BE22 -> 0
B130: =신고서!C23 -> 2 | E130: =신고서!F23 -> 편람일 | M130: =신고서!O23 -> ○ | S130: =신고서!U23 -> ○ | U130: =신고서!X23 -> 0 | W130: 국세청 | Z130: =신고서!AE23 -> 0 | AB130: =신고서!AG23 -> 0 | AD130: =신고서!AI23 -> 0 | AF130: =신고서!AK23 -> 0 | AH130: =신고서!AM23 -> 0 | AJ130: =신고서!AO23 -> 0 | AL130: =신고서!AQ23 -> 0 | AQ130: =신고서!AS23 -> 0 | AS130: =신고서!BC23 -> 0 | AU130: =신고서!BE23 -> 0
B131: =신고서!C24 -> 1 | G131: =신고서!F24 -> 481103-2019015 | M131: =신고서!O24 -> 0 | P131: =신고서!R24 -> 0 | S131: =신고서!U24 -> 0 | U131: =신고서!X24 -> 0 | W131: 기타 | Z131: =신고서!AE24 -> 0 | AB131: =신고서!AG24 -> 0 | AD131: =신고서!AI24 -> 0 | AF131: =신고서!AK24 -> 0 | AH131: =신고서!AM24 -> 0 | AJ131: =신고서!AO24 -> 0 | AL131: =신고서!AQ24 -> 0 | AQ131: =신고서!AS24 -> 0 | AS131: =신고서!BC24 -> 0 | AU131: =신고서!BE24 -> 0
B132: =신고서!C25 -> 4 | E132: =신고서!F25 -> 이대한 | M132: =신고서!O25 -> ○ | S132: =신고서!U25 -> 0 | U132: =신고서!X25 -> 0 | W132: 국세청 | Z132: =신고서!AE25 -> 0 | AB132: =신고서!AG25 -> 0 | AD132: =신고서!AI25 -> 0 | AF132: =신고서!AK25 -> 0 | AH132: =신고서!AM25 -> 0 | AJ132: =신고서!AO25 -> 0 | AL132: =신고서!AQ25 -> 0 | AQ132: =신고서!AS25 -> 0 | AS132: =신고서!BC25 -> 0 | AU132: =신고서!BE25 -> 0
B133: =신고서!C26 -> 1 | E133: =신고서!F26 -> 091206-4059631 | M133: =신고서!O26 -> 0 | P133: =신고서!R26 -> 0 | S133: =신고서!U26 -> 0 | U133: =신고서!X26 -> 0 | W133: 기타 | Z133: =신고서!AE26 -> 0 | AB133: =신고서!AG26 -> 0 | AD133: =신고서!AI26 -> 0 | AF133: =신고서!AK26 -> 0 | AH133: =신고서!AM26 -> 0 | AJ133: =신고서!AO26 -> 0 | AL133: =신고서!AQ26 -> 0 | AQ133: =신고서!AS26 -> 0 | AS133: =신고서!BC26 -> 0 | AU133: =신고서!BE26 -> 0
B134: =신고서!C27 -> 4 | E134: =신고서!F27 -> 이민국 | M134: =신고서!O27 -> ○ | S134: =신고서!U27 -> 0 | U134: =신고서!X27 -> 0 | W134: 국세청 | Z134: =신고서!AE27 -> 0 | AB134: =신고서!AG27 -> 0 | AD134: =신고서!AI27 -> 0 | AF134: =신고서!AK27 -> 0 | AH134: =신고서!AM27 -> 0 | AJ134: =신고서!AO27 -> 0 | AL134: =신고서!AQ27 -> 0 | AQ134: =신고서!AS27 -> 0 | AS134: =신고서!BC27 -> 0 | AU134: =신고서!BE27 -> 0
B135: =신고서!C28 -> 1 | E135: =신고서!F28 -> 151230-3059632 | M135: =신고서!O28 -> 0 | P135: =신고서!R28 -> 0 | S135: =신고서!U28 -> 0 | U135: =신고서!X28 -> 0 | W135: 기타 | Z135: =신고서!AE28 -> 0 | AB135: =신고서!AG28 -> 0 | AD135: =신고서!AI28 -> 0 | AF135: =신고서!AK28 -> 0 | AH135: =신고서!AM28 -> 0 | AJ135: =신고서!AO28 -> 0 | AL135: =신고서!AQ28 -> 0 | AQ135: =신고서!AS28 -> 0 | AS135: =신고서!BC28 -> 0 | AU135: =신고서!BE28 -> 0
B136: =신고서!C29 -> 0 | G136: =신고서!H29 -> 0 | M136: =신고서!O29 -> 0 | S136: =신고서!U29 -> 0 | U136: =신고서!X29 -> 0 | W136: 국세청 | Z136: =신고서!AE29 -> 0 | AB136: =신고서!AG29 -> 0 | AD136: =신고서!AI29 -> 0 | AF136: =신고서!AK29 -> 0 | AH136: =신고서!AM29 -> 0 | AJ136: =신고서!AO29 -> 0 | AL136: =신고서!AQ29 -> 0 | AQ136: =신고서!AS29 -> 0 | AS136: =신고서!BC29 -> 0 | AU136: =신고서!BE29 -> 0
B137: =신고서!C30 -> 0 | G137: =신고서!H30 -> 0 | M137: =신고서!O30 -> 0 | P137: =신고서!R30 -> 0 | S137: =신고서!U30 -> 0 | U137: =신고서!X30 -> 0 | W137: 기타 | Z137: =신고서!AE30 -> 0 | AB137: =신고서!AG30 -> 0 | AD137: =신고서!AI30 -> 0 | AF137: =신고서!AK30 -> 0 | AH137: =신고서!AM30 -> 0 | AJ137: =신고서!AO30 -> 0 | AL137: =신고서!AQ30 -> 0 | AQ137: =신고서!AS30 -> 0 | AS137: =신고서!BC30 -> 0 | AU137: =신고서!BE30 -> 0
B138: =신고서!C31 -> 0 | G138: =신고서!H31 -> 0 | M138: =신고서!O31 -> 0 | S138: =신고서!U31 -> 0 | U138: =신고서!X31 -> 0 | W138: 국세청 | Z138: =신고서!AE31 -> 0 | AB138: =신고서!AG31 -> 0 | AD138: =신고서!AI31 -> 0 | AF138: =신고서!AK31 -> 0 | AH138: =신고서!AM31 -> 0 | AJ138: =신고서!AO31 -> 0 | AL138: =신고서!AQ31 -> 0 | AQ138: =신고서!AS31 -> 0 | AS138: =신고서!BC31 -> 0 | AU138: =신고서!BE31 -> 0
B139: =신고서!C32 -> 0 | G139: =신고서!H32 -> 0 | M139: =신고서!O32 -> 0 | P139: =신고서!R32 -> 0 | S139: =신고서!U32 -> 0 | U139: =신고서!X32 -> 0 | W139: 기타 | Z139: =신고서!AE32 -> 0 | AB139: =신고서!AG32 -> 0 | AD139: =신고서!AI32 -> 0 | AF139: =신고서!AK32 -> 0 | AH139: =신고서!AM32 -> 0 | AJ139: =신고서!AO32 -> 0 | AL139: =신고서!AQ32 -> 0 | AQ139: =신고서!AS32 -> 0 | AS139: =신고서!BC32 -> 0 | AU139: =신고서!BE32 -> 0
B140: =신고서!C33 -> 0 | G140: =신고서!H33 -> 0 | M140: =신고서!O33 -> 0 | S140: =신고서!U33 -> 0 | U140: =신고서!X33 -> 0 | W140: 국세청 | Z140: =신고서!AE33 -> 0 | AB140: =신고서!AG33 -> 0 | AD140: =신고서!AI33 -> 0 | AF140: =신고서!AK33 -> 0 | AH140: =신고서!AM33 -> 0 | AJ140: =신고서!AO33 -> 0 | AL140: =신고서!AQ33 -> 0 | AQ140: =신고서!AS33 -> 0 | AS140: =신고서!BC33 -> 0 | AU140: =신고서!BE33 -> 0
B141: =신고서!C34 -> 0 | G141: =신고서!H34 -> 0 | M141: =신고서!O34 -> 0 | P141: =신고서!R34 -> 0 | S141: =신고서!U34 -> 0 | U141: =신고서!X34 -> 0 | W141: 기타 | Z141: =신고서!AE34 -> 0 | AB141: =신고서!AG34 -> 0 | AD141: =신고서!AI34 -> 0 | AF141: =신고서!AK34 -> 0 | AH141: =신고서!AM34 -> 0 | AJ141: =신고서!AO34 -> 0 | AL141: =신고서!AQ34 -> 0 | AQ141: =신고서!AS34 -> 0 | AS141: =신고서!BC34 -> 0 | AU141: =신고서!BE34 -> 0
B142: =신고서!C35 -> 0 | G142: =신고서!H35 -> 0 | M142: =신고서!O35 -> 0 | S142: =신고서!U35 -> 0 | U142: =신고서!X35 -> 0 | W142: 국세청 | Z142: =신고서!AE35 -> 0 | AB142: =신고서!AG35 -> 0 | AD142: =신고서!AI35 -> 0 | AF142: =신고서!AK35 -> 0 | AH142: =신고서!AM35 -> 0 | AJ142: =신고서!AO35 -> 0 | AL142: =신고서!AQ35 -> 0 | AQ142: =신고서!AS35 -> 0 | AS142: =신고서!BC35 -> 0 | AU142: =신고서!BE35 -> 0
B143: =신고서!C36 -> 0 | G143: =신고서!H36 -> 0 | M143: =신고서!O36 -> 0 | P143: =신고서!R36 -> 0 | S143: =신고서!U36 -> 0 | U143: =신고서!X36 -> 0 | W143: 기타 | Z143: =신고서!AE36 -> 0 | AB143: =신고서!AG36 -> 0 | AD143: =신고서!AI36 -> 0 | AF143: =신고서!AK36 -> 0 | AH143: =신고서!AM36 -> 0 | AJ143: =신고서!AO36 -> 0 | AL143: =신고서!AQ36 -> 0 | AQ143: =신고서!AS36 -> 0 | AS143: =신고서!BC36 -> 0 | AU143: =신고서!BE36 -> 0
B144: =신고서!C37 -> 0 | G144: =신고서!H37 -> 0 | M144: =신고서!O37 -> 0 | S144: =신고서!U37 -> 0 | U144: =신고서!X37 -> 0 | W144: 국세청 | Z144: =신고서!AE37 -> 0 | AB144: =신고서!AG37 -> 0 | AD144: =신고서!AI37 -> 0 | AF144: =신고서!AK37 -> 0 | AH144: =신고서!AM37 -> 0 | AJ144: =신고서!AO37 -> 0 | AL144: =신고서!AQ37 -> 0 | AQ144: =신고서!AS37 -> 0 | AS144: =신고서!BC37 -> 0 | AU144: =신고서!BE37 -> 0
B145: =신고서!C38 -> 0 | G145: =신고서!H38 -> 0 | M145: =신고서!O38 -> 0 | P145: =신고서!R38 -> 0 | S145: =신고서!U38 -> 0 | U145: =신고서!X38 -> 0 | W145: 기타 | Z145: =신고서!AE38 -> 0 | AB145: =신고서!AG38 -> 0 | AD145: =신고서!AI38 -> 0 | AF145: =신고서!AK38 -> 0 | AH145: =신고서!AM38 -> 0 | AJ145: =신고서!AO38 -> 0 | AL145: =신고서!AQ38 -> 0 | AQ145: =신고서!AS38 -> 0 | AS145: =신고서!BC38 -> 0 | AU145: =신고서!BE38 -> 0
B146: 각종 소득공제ㆍ세액공제 항목
B147: 자료 구분 | G147: 신용카드등 사용액공제 | AS147: 기부금
G148: 신용카드 | M148: 직불카드등 | T148: 현금영수증 | Y148: 도서공연등사용분 (총급여 7천만원 이하자만 기재) | AE148: 전통시장사용분 | AK148: 대중교통 이용분 | AO148: 소비증가분
AO149: 2020년 전체사용분 | AQ149: 2021년 전체사용분
B150: 국세청계 | G150: =+신고서!H43 -> 0 | M150: =+신고서!O43 -> 0 | T150: =+신고서!U43 -> 0 | Y150: =+신고서!AA43 -> 0 | AE150: =+신고서!AG43 -> 0 | AK150: =신고서!AN43 -> 0 | AO150: =신고서!AU43 -> 0 | AQ150: =신고서!AY43 -> 0 | AS150: =신고서!BC43 -> 0
B151: 기타계 | G151: =+신고서!H44 -> 0 | M151: =+신고서!O44 -> 0 | Y151: =+신고서!AA44 -> 0 | AE151: =+신고서!AG44 -> 0 | AK151: =+신고서!AN44 -> 0 | AO151: =신고서!AU44 -> 0 | AQ151: =신고서!AY44 -> 0 | AS151: =+신고서!BC44 -> 0
B152: 국세청 | G152: =+신고서!H45 -> 0 | M152: =+신고서!O45 -> 0 | T152: =+신고서!U45 -> 0 | Y152: =+신고서!AA45 -> 0 | AE152: =+신고서!AG45 -> 0 | AK152: =+신고서!AN45 -> 0 | AO152: =신고서!AU45 -> 0 | AQ152: =신고서!AY45 -> 0 | AS152: =신고서!BC45 -> 0
B153: 기타 | G153: =+신고서!H46 -> 0 | M153: =+신고서!O46 -> 0 | Y153: =+신고서!AA46 -> 0 | AE153: =+신고서!AG46 -> 0 | AK153: =+신고서!AN46 -> 0 | AO153: =신고서!AU46 -> 0 | AQ153: =신고서!AY46 -> 0 | AS153: =+신고서!BC46 -> 0
B154: 국세청 | G154: =+신고서!H47 -> 0 | M154: =+신고서!O47 -> 0 | T154: =+신고서!U47 -> 0 | Y154: =+신고서!AA47 -> 0 | AE154: =+신고서!AG47 -> 0 | AK154: =+신고서!AN47 -> 0 | AO154: =신고서!AU47 -> 0 | AQ154: =신고서!AY47 -> 0 | AS154: =신고서!BC47 -> 0
B155: 기타 | G155: =+신고서!H48 -> 0 | M155: =+신고서!O48 -> 0 | Y155: =+신고서!AA48 -> 0 | AE155: =+신고서!AG48 -> 0 | AK155: =+신고서!AN48 -> 0 | AO155: =신고서!AU48 -> 0 | AQ155: =신고서!AY48 -> 0 | AS155: =+신고서!BC48 -> 0
AV156: 210㎜×297㎜

Sheet 징수부
B2: ■ 소득세법 시행규칙 [별지 제25호서식(1)] <개정 2014.3.14> | Q2: (3쪽 중 제1쪽)
F3: 소 득 자 별 근 로 소 득 원 천 징 수 부
C4: ①귀속연도 | E4: =기본사항!G10 -> 2022
B6: 징수의무자 | E6: ②법 인 명(상호) | H6: =기본사항!G14 -> (주)조세통람
E7: ③사업자등록번호 | H7: =기본사항!G16 -> 203-81-11111
B8: ④ 근무처
B9: 소 득 자 | E9: ⑤성 명 | H9: =기본사항!G7 -> 이영화 | J9: ⑥주민등록번호 | L9: =기본사항!G8 -> 123456-1234567 | O9: ⑦입사일 퇴사일
E11: ⑧ 내외국인 구분 | H11: 내국인1/외국인9 | J11: ⑨ 국적 | O11: (국적코드 : )
E12: ⑩ 공제대상가족의 수(본인․배우자를 각각 1인으로 봄) | L12: =인적공제!G17 -> 5
E13: ⑪ 20세 이하 자녀의 수 | L13: =인적공제!O7 -> 0
E14: ⑫ 감면 적용 여부 | H14: 여 1, 부 2 | J14: ⑬ 감면규정 | N14: ⑭ 감면기간 | P14: ~
B15: Ⅰ. 근 로 소 득 지 급 명 세
B16: 월별 | C16: (15)지급연월 | E16: 1. 총 급 여 | M16: 2. 징수세액
E17: (16)급여 | F17: (17)상여 | G17: (18)인정상여 | H17: (19)주식매수선택권행사이익 | I17: (20)우리사주조합인출금 | J17: (21)임원퇴직소득금액 한도초과액 | K17: (22)~(29) | L17: (30)계 | M17: 간이세액표 적용 대상 | O17: 그 외 | P17: (34)소득세계 (32)+(33) | Q17: (35)지방 소득세
M18: (31)급여구간 | N18: (32)소득세 | O18: (33)소득세
B19: 1 | C19: =급여내역!E8 -> 0 | E19: =급여내역!H8 -> 2100000 | F19: =급여내역!M8 -> 0 | G19: =급여내역!Q8 -> 0 | H19: =급여내역!U8 -> 0 | I19: =급여내역!V8 -> 0 | J19: =급여내역!X8 -> 0 | L19: =SUM(E19:K19) -> 2100000 | N19: =급여내역!AC8 -> 22740 | P19: =N19+O19 -> 22740 | Q19: =P19*0.1 -> 2274
B20: 2 | C20: =급여내역!E9 -> 0 | E20: =급여내역!H9 -> 2100000 | F20: =급여내역!M9 -> 0 | G20: =급여내역!Q9 -> 0 | H20: =급여내역!U9 -> 0 | I20: =급여내역!V9 -> 0 | J20: =급여내역!X9 -> 0 | L20: =SUM(E20:K20) -> 2100000 | N20: =급여내역!AC9 -> 22740 | P20: =N20+O20 -> 22740 | Q20: =P20*0.1 -> 2274
B21: 3 | C21: =급여내역!E10 -> 0 | E21: =급여내역!H10 -> 2100000 | F21: =급여내역!M10 -> 0 | G21: =급여내역!Q10 -> 0 | H21: =급여내역!U10 -> 0 | I21: =급여내역!V10 -> 0 | J21: =급여내역!X10 -> 0 | L21: 2100000 | N21: =급여내역!AC10 -> 22740 | P21: 22740 | Q21: 2274
B22: 4 | C22: =급여내역!E11 -> 0 | E22: =급여내역!H11 -> 2100000 | F22: =급여내역!M11 -> 0 | G22: =급여내역!Q11 -> 0 | H22: =급여내역!U11 -> 0 | I22: =급여내역!V11 -> 0 | J22: =급여내역!X11 -> 0 | L22: 2100000 | N22: =급여내역!AC11 -> 22740 | P22: 22740 | Q22: 2274
B23: 5 | C23: =급여내역!E12 -> 0 | E23: =급여내역!H12 -> 2100000 | F23: =급여내역!M12 -> 0 | G23: =급여내역!Q12 -> 0 | H23: =급여내역!U12 -> 0 | I23: =급여내역!V12 -> 0 | J23: =급여내역!X12 -> 0 | L23: 2100000 | N23: =급여내역!AC12 -> 22740 | P23: 22740 | Q23: 2274
B24: 6 | C24: =급여내역!E13 -> 0 | E24: =급여내역!H13 -> 2100000 | F24: =급여내역!M13 -> 0 | G24: =급여내역!Q13 -> 0 | H24: =급여내역!U13 -> 0 | I24: =급여내역!V13 -> 0 | J24: =급여내역!X13 -> 0 | L24: 2100000 | N24: =급여내역!AC13 -> 22740 | P24: 22740 | Q24: 2274
B25: 7 | C25: =급여내역!E14 -> 0 | E25: =급여내역!H14 -> 2100000 | F25: =급여내역!M14 -> 0 | G25: =급여내역!Q14 -> 0 | H25: =급여내역!U14 -> 0 | I25: =급여내역!V14 -> 0 | J25: =급여내역!X14 -> 0 | L25: 2100000 | N25: =급여내역!AC14 -> 22740 | P25: 22740 | Q25: 2274
B26: 8 | C26: =급여내역!E15 -> 0 | E26: =급여내역!H15 -> 2100000 | F26: =급여내역!M15 -> 0 | G26: =급여내역!Q15 -> 0 | H26: =급여내역!U15 -> 0 | I26: =급여내역!V15 -> 0 | J26: =급여내역!X15 -> 0 | L26: 2100000 | N26: =급여내역!AC15 -> 22740 | P26: 22740 | Q26: 2274
B27: 9 | C27: =급여내역!E16 -> 0 | E27: =급여내역!H16 -> 2100000 | F27: =급여내역!M16 -> 0 | G27: =급여내역!Q16 -> 0 | H27: =급여내역!U16 -> 0 | I27: =급여내역!V16 -> 0 | J27: =급여내역!X16 -> 0 | L27: 2100000 | N27: =급여내역!AC16 -> 22740 | P27: 22740 | Q27: 2274
B28: 10 | C28: =급여내역!E17 -> 0 | E28: =급여내역!H17 -> 2100000 | F28: =급여내역!M17 -> 0 | G28: =급여내역!Q17 -> 0 | H28: =급여내역!U17 -> 0 | I28: =급여내역!V17 -> 0 | J28: =급여내역!X17 -> 0 | L28: 2100000 | N28: =급여내역!AC17 -> 22740 | P28: 22740 | Q28: 2274
B29: 11 | C29: =급여내역!E18 -> 0 | E29: =급여내역!H18 -> 2100000 | F29: =급여내역!M18 -> 0 | G29: =급여내역!Q18 -> 0 | H29: =급여내역!U18 -> 0 | I29: =급여내역!V18 -> 0 | J29: =급여내역!X18 -> 0 | L29: 2100000 | N29: =급여내역!AC18 -> 22740 | P29: 22740 | Q29: 2274
B30: 12 | C30: =급여내역!E19 -> 0 | E30: =급여내역!H19 -> 2100000 | F30: =급여내역!M19 -> 0 | G30: =급여내역!Q19 -> 0 | H30: =급여내역!U19 -> 0 | I30: =급여내역!V19 -> 0 | J30: =급여내역!X19 -> 0 | L30: 2100000 | N30: =급여내역!AC19 -> 22740 | P30: 22740 | Q30: 2274
B31: 계 | E31: =SUM(E19:E30) -> 25200000 | F31: 0 | G31: 0 | H31: 0 | I31: 0 | J31: 0 | K31: 0 | L31: 25200000 | N31: =SUM(N19:N30) -> 272880 | O31: =SUM(O19:O30) -> 0 | P31: =SUM(P19:P30) -> 272880 | Q31: =SUM(Q19:Q30) -> 27288
Q32: 297㎜×210㎜
Q34: (3쪽 중 제2쪽)
B35: Ⅱ. 비 과 세 소 득
B36: ※소득세법 시행규칙 제24호 서식(1) 근로소득원천징수영수증(5쪽) 비과세 및 감면소득 코드 참조
B37: 월별 | C37: 1. 지급명세서 작성 대상 비과세 소득 | N37: 2. 지급명세서 작성 제외대상 비과세 소득 ※해당 원천징수의무자가 지급한 소득을 적음
C38: (15)지급연월 | E38: 국외근로소득 (코드 : ) | H38: (39)야간근로 수당 등 (O01) | I38: (40)출산˙ 보육수당 (Q01) | J38: (41)～(49) (코드 : ) | K38: (50)합계 (38+～+49) | N38: (51)일직료 등 (H02) | O38: (52)자가운전보조금 (H03) | P38: (53)～(59) | Q38: (60)합계 (51+～+59)
E39: (36)외화 | F39: (37)환율 | G39: (38)원화
B40: 1 | C40: =급여내역!AX8 -> 0 | G40: =급여내역!BB8 -> 0 | H40: =급여내역!BK8 -> 0 | I40: =급여내역!BO8 -> 0 | J40: =급여내역!BP8 -> 0 | K40: =SUM(G40:J40) -> 0 | Q40: =SUM(N40:P40) -> 0
B41: 2 | C41: =급여내역!AX9 -> 0 | G41: =급여내역!BB9 -> 0 | H41: =급여내역!BK9 -> 0 | I41: =급여내역!BO9 -> 0 | J41: =급여내역!BP9 -> 0 | K41: =SUM(G41:J41) -> 0 | Q41: =SUM(N41:P41) -> 0
B42: 3 | C42: =급여내역!AX10 -> 0 | G42: =급여내역!BB10 -> 0 | H42: =급여내역!BK10 -> 0 | I42: =급여내역!BO10 -> 0 | J42: =급여내역!BP10 -> 0 | K42: 0 | Q42: 0
B43: 4 | C43: =급여내역!AX11 -> 0 | G43: =급여내역!BB11 -> 0 | H43: =급여내역!BK11 -> 0 | I43: =급여내역!BO11 -> 0 | J43: =급여내역!BP11 -> 0 | K43: 0 | Q43: 0
B44: 5 | C44: =급여내역!AX12 -> 0 | G44: =급여내역!BB12 -> 0 | H44: =급여내역!BK12 -> 0 | I44: =급여내역!BO12 -> 0 | J44: =급여내역!BP12 -> 0 | K44: 0 | Q44: 0
B45: 6 | C45: =급여내역!AX13 -> 0 | G45: =급여내역!BB13 -> 0 | H45: =급여내역!BK13 -> 0 | I45: =급여내역!BO13 -> 0 | J45: =급여내역!BP13 -> 0 | K45: 0 | Q45: 0
B46: 7 | C46: =급여내역!AX14 -> 0 | G46: =급여내역!BB14 -> 0 | H46: =급여내역!BK14 -> 0 | I46: =급여내역!BO14 -> 0 | J46: =급여내역!BP14 -> 0 | K46: 0 | Q46: 0
B47: 8 | C47: =급여내역!AX15 -> 0 | G47: =급여내역!BB15 -> 0 | H47: =급여내역!BK15 -> 0 | I47: =급여내역!BO15 -> 0 | J47: =급여내역!BP15 -> 0 | K47: 0 | Q47: 0
B48: 9 | C48: =급여내역!AX16 -> 0 | G48: =급여내역!BB16 -> 0 | H48: =급여내역!BK16 -> 0 | I48: =급여내역!BO16 -> 0 | J48: =급여내역!BP16 -> 0 | K48: 0 | Q48: 0
B49: 10 | C49: =급여내역!AX17 -> 0 | G49: =급여내역!BB17 -> 0 | H49: =급여내역!BK17 -> 0 | I49: =급여내역!BO17 -> 0 | J49: =급여내역!BP17 -> 0 | K49: 0 | Q49: 0
B50: 11 | C50: =급여내역!AX18 -> 0 | G50: =급여내역!BB18 -> 0 | H50: =급여내역!BK18 -> 0 | I50: =급여내역!BO18 -> 0 | J50: =급여내역!BP18 -> 0 | K50: 0 | Q50: 0
B51: 12 | C51: =급여내역!AX19 -> 0 | G51: =급여내역!BB19 -> 0 | H51: =급여내역!BK19 -> 0 | I51: =급여내역!BO19 -> 0 | J51: =급여내역!BP19 -> 0 | K51: 0 | Q51: 0
B52: 계 | F52: =SUM(F40:F51) -> 0 | G52: =SUM(G40:G51) -> 0 | H52: =SUM(H40:H51) -> 0 | I52: 0 | J52: 0 | K52: 0 | N52: 0 | O52: 0 | P52: =SUM(P40:P51) -> 0 | Q52: =SUM(Q40:Q51) -> 0
Q53: 297㎜×210㎜
Q54: (3쪽 중 제3쪽)
B55: Ⅲ. 근 로 소 득 원 천 징 수 액 등
B56: 월별 | C56: 1.감면세액 | F56: (63)납세조합 공제세액 | G56: 2. 차 감 원 천 징 수 액 | K56: 3. 징수의무자 자체 증빙 지출액(소득공제)
C57: (61)감면소득 | E57: (62)감면세액 | G57: (64)소득세 | H57: (65)지방소득세 | I57: (66)농어촌특별세 | J57: (67)외국납부세액 | K57: (68)연금보험 | L57: (69)건강보험 | M57: (70)고용보험 | N57: (71)기부금 | P57: (72)비고
B58: 1 | E58: =급여내역!AI8 -> 0 | G58: =급여내역!AL8 -> 22740 | H58: =급여내역!AP8 -> 2270 | I58: =급여내역!AT8 -> 0 | K58: =급여내역!CA8 -> 94500 | L58: =급여내역!CB8+급여내역!CD8 -> 73600 | M58: =급여내역!CC8 -> 16800
B59: 2 | E59: =급여내역!AI9 -> 0 | G59: =급여내역!AL9 -> 22740 | H59: =급여내역!AP9 -> 2270 | I59: =급여내역!AT9 -> 0 | K59: =급여내역!CA9 -> 94500 | L59: =급여내역!CB9+급여내역!CD9 -> 73600 | M59: =급여내역!CC9 -> 16800
B60: 3 | E60: =급여내역!AI10 -> 0 | G60: =급여내역!AL10 -> 22740 | H60: =급여내역!AP10 -> 2270 | I60: =급여내역!AT10 -> 0 | K60: =급여내역!CA10 -> 94500 | L60: =급여내역!CB10+급여내역!CD10 -> 73600 | M60: =급여내역!CC10 -> 16800
B61: 4 | E61: =급여내역!AI11 -> 0 | G61: =급여내역!AL11 -> 22740 | H61: =급여내역!AP11 -> 2270 | I61: =급여내역!AT11 -> 0 | K61: =급여내역!CA11 -> 94500 | L61: =급여내역!CB11+급여내역!CD11 -> 73600 | M61: =급여내역!CC11 -> 16800
B62: 5 | E62: =급여내역!AI12 -> 0 | G62: =급여내역!AL12 -> 22740 | H62: =급여내역!AP12 -> 2270 | I62: =급여내역!AT12 -> 0 | K62: =급여내역!CA12 -> 94500 | L62: =급여내역!CB12+급여내역!CD12 -> 73600 | M62: =급여내역!CC12 -> 16800
B63: 6 | E63: =급여내역!AI13 -> 0 | G63: =급여내역!AL13 -> 22740 | H63: =급여내역!AP13 -> 2270 | I63: =급여내역!AT13 -> 0 | K63: =급여내역!CA13 -> 94500 | L63: =급여내역!CB13+급여내역!CD13 -> 73600 | M63: =급여내역!CC13 -> 16800
B64: 7 | E64: =급여내역!AI14 -> 0 | G64: =급여내역!AL14 -> 22740 | H64: =급여내역!AP14 -> 2270 | I64: =급여내역!AT14 -> 0 | K64: =급여내역!CA14 -> 94500 | L64: =급여내역!CB14+급여내역!CD14 -> 73600 | M64: =급여내역!CC14 -> 16800
B65: 8 | E65: =급여내역!AI15 -> 0 | G65: =급여내역!AL15 -> 22740 | H65: =급여내역!AP15 -> 2270 | I65: =급여내역!AT15 -> 0 | K65: =급여내역!CA15 -> 94500 | L65: =급여내역!CB15+급여내역!CD15 -> 73600 | M65: =급여내역!CC15 -> 16800
B66: 9 | E66: =급여내역!AI16 -> 0 | G66: =급여내역!AL16 -> 22740 | H66: =급여내역!AP16 -> 0 | I66: =급여내역!AT16 -> 0 | K66: =급여내역!CA16 -> 94500 | L66: =급여내역!CB16+급여내역!CD16 -> 73600 | M66: =급여내역!CC16 -> 16800
B67: 10 | E67: =급여내역!AI17 -> 0 | G67: =급여내역!AL17 -> 22740 | H67: =급여내역!AP17 -> 2270 | I67: =급여내역!AT17 -> 0 | K67: =급여내역!CA17 -> 94500 | L67: =급여내역!CB17+급여내역!CD17 -> 73600 | M67: =급여내역!CC17 -> 16800
B68: 11 | E68: =급여내역!AI18 -> 0 | G68: =급여내역!AL18 -> 22740 | H68: =급여내역!AP18 -> 2270 | I68: =급여내역!AT18 -> 0 | K68: =급여내역!CA18 -> 94500 | L68: =급여내역!CB18+급여내역!CD18 -> 73600 | M68: =급여내역!CC18 -> 16800
B69: 12 | E69: =급여내역!AI19 -> 0 | G69: =급여내역!AL19 -> 22740 | H69: =급여내역!AP19 -> 2270 | I69: =급여내역!AT19 -> 0 | K69: =급여내역!CA19 -> 94500 | L69: =급여내역!CB19+급여내역!CD19 -> 73600 | M69: =급여내역!CC19 -> 16800
B70: 계 | C70: =SUM(C58:D69) -> 0 | E70: =SUM(E58:E69) -> 0 | F70: 0 | G70: 272880 | H70: 24970 | I70: 0 | J70: 0 | K70: 1134000 | L70: 883200 | M70: 201600
B71: 작성일자: | G71: =기본사항!G19 -> 2023-03-02 | I71: 징수의무자: | K71: =기본사항!G15 -> 김철수 | N71: (서명 또는 인)
B72: ※ (72)비고란에는 (71)기부금에 해당하는 기부금유형 및 코드를 적습니다.
Q73: 297㎜×210㎜

Sheet 사용가이드
